{"text_format":"3","workbook":"xlsx","n_sheets":12,"sheets":["Oca","Şub","Mar","Nis","May","Haz","Tem","Ağu","Eyl","Eki","Kas","Ara"],"not_rendered":{"images":26,"defined_names":25},"read":"whole","date_system":"1900"}

{"sheet":"Oca","index":0,"n_rows":15,"n_cols":11,"rows_kept":15,"merged":[[2,1,2,5],[14,3,14,7],[15,3,15,7]]}
[{"$nulls":10},"YIL SEÇİN:"]
[{"$nulls":10},{"$f":"YEAR(TODAY())","v":2018}]
[null,{"$f":"UPPER(TEXT(DATE(TakvimYılı,1,1),\"aaaa yyyy\"))","v":"OCAK 2018"}]
[null,"PAZARTESİ","SALI","ÇARŞAMBA","PERŞEMBE","CUMA","CUMARTESİ","PAZAR"]
[null,{"$f":"IF(DAY(OcaPaz1)=1,\"\",IF(AND(YEAR(OcaPaz1+1)=TakvimYılı,MONTH(OcaPaz1+1)=1),OcaPaz1+1,\"\"))","v":"2018-01-01"},{"$f":"IF(DAY(OcaPaz1)=1,\"\",IF(AND(YEAR(OcaPaz1+2)=TakvimYılı,MONTH(OcaPaz1+2)=1),OcaPaz1+2,\"\"))","v":"2018-01-02"},{"$f":"IF(DAY(OcaPaz1)=1,\"\",IF(AND(YEAR(OcaPaz1+3)=TakvimYılı,MONTH(OcaPaz1+3)=1),OcaPaz1+3,\"\"))","v":"2018-01-03"},{"$f":"IF(DAY(OcaPaz1)=1,\"\",IF(AND(YEAR(OcaPaz1+4)=TakvimYılı,MONTH(OcaPaz1+4)=1),OcaPaz1+4,\"\"))","v":"2018-01-04"},{"$f":"IF(DAY(OcaPaz1)=1,\"\",IF(AND(YEAR(OcaPaz1+5)=TakvimYılı,MONTH(OcaPaz1+5)=1),OcaPaz1+5,\"\"))","v":"2018-01-05"},{"$f":"IF(DAY(OcaPaz1)=1,\"\",IF(AND(YEAR(OcaPaz1+6)=TakvimYılı,MONTH(OcaPaz1+6)=1),OcaPaz1+6,\"\"))","v":"2018-01-06"},{"$f":"IF(DAY(OcaPaz1)=1,IF(AND(YEAR(OcaPaz1)=TakvimYılı,MONTH(OcaPaz1)=1),OcaPaz1,\"\"),IF(AND(YEAR(OcaPaz1+7)=TakvimYılı,MONTH(OcaPaz1+7)=1),OcaPaz1+7,\"\"))","v":"2018-01-07"}]
[]
[null,{"$f":"IF(DAY(OcaPaz1)=1,IF(AND(YEAR(OcaPaz1+1)=TakvimYılı,MONTH(OcaPaz1+1)=1),OcaPaz1+1,\"\"),IF(AND(YEAR(OcaPaz1+8)=TakvimYılı,MONTH(OcaPaz1+8)=1),OcaPaz1+8,\"\"))","v":"2018-01-08"},{"$f":"IF(DAY(OcaPaz1)=1,IF(AND(YEAR(OcaPaz1+2)=TakvimYılı,MONTH(OcaPaz1+2)=1),OcaPaz1+2,\"\"),IF(AND(YEAR(OcaPaz1+9)=TakvimYılı,MONTH(OcaPaz1+9)=1),OcaPaz1+9,\"\"))","v":"2018-01-09"},{"$f":"IF(DAY(OcaPaz1)=1,IF(AND(YEAR(OcaPaz1+3)=TakvimYılı,MONTH(OcaPaz1+3)=1),OcaPaz1+3,\"\"),IF(AND(YEAR(OcaPaz1+10)=TakvimYılı,MONTH(OcaPaz1+10)=1),OcaPaz1+10,\"\"))","v":"2018-01-10"},{"$f":"IF(DAY(OcaPaz1)=1,IF(AND(YEAR(OcaPaz1+4)=TakvimYılı,MONTH(OcaPaz1+4)=1),OcaPaz1+4,\"\"),IF(AND(YEAR(OcaPaz1+11)=TakvimYılı,MONTH(OcaPaz1+11)=1),OcaPaz1+11,\"\"))","v":"2018-01-11"},{"$f":"IF(DAY(OcaPaz1)=1,IF(AND(YEAR(OcaPaz1+5)=TakvimYılı,MONTH(OcaPaz1+5)=1),OcaPaz1+5,\"\"),IF(AND(YEAR(OcaPaz1+12)=TakvimYılı,MONTH(OcaPaz1+12)=1),OcaPaz1+12,\"\"))","v":"2018-01-12"},{"$f":"IF(DAY(OcaPaz1)=1,IF(AND(YEAR(OcaPaz1+6)=TakvimYılı,MONTH(OcaPaz1+6)=1),OcaPaz1+6,\"\"),IF(AND(YEAR(OcaPaz1+13)=TakvimYılı,MONTH(OcaPaz1+13)=1),OcaPaz1+13,\"\"))","v":"2018-01-13"},{"$f":"IF(DAY(OcaPaz1)=1,IF(AND(YEAR(OcaPaz1+7)=TakvimYılı,MONTH(OcaPaz1+7)=1),OcaPaz1+7,\"\"),IF(AND(YEAR(OcaPaz1+14)=TakvimYılı,MONTH(OcaPaz1+14)=1),OcaPaz1+14,\"\"))","v":"2018-01-14"}]
[]
[null,{"$f":"IF(DAY(OcaPaz1)=1,IF(AND(YEAR(OcaPaz1+8)=TakvimYılı,MONTH(OcaPaz1+8)=1),OcaPaz1+8,\"\"),IF(AND(YEAR(OcaPaz1+15)=TakvimYılı,MONTH(OcaPaz1+15)=1),OcaPaz1+15,\"\"))","v":"2018-01-15"},{"$f":"IF(DAY(OcaPaz1)=1,IF(AND(YEAR(OcaPaz1+9)=TakvimYılı,MONTH(OcaPaz1+9)=1),OcaPaz1+9,\"\"),IF(AND(YEAR(OcaPaz1+16)=TakvimYılı,MONTH(OcaPaz1+16)=1),OcaPaz1+16,\"\"))","v":"2018-01-16"},{"$f":"IF(DAY(OcaPaz1)=1,IF(AND(YEAR(OcaPaz1+10)=TakvimYılı,MONTH(OcaPaz1+10)=1),OcaPaz1+10,\"\"),IF(AND(YEAR(OcaPaz1+17)=TakvimYılı,MONTH(OcaPaz1+17)=1),OcaPaz1+17,\"\"))","v":"2018-01-17"},{"$f":"IF(DAY(OcaPaz1)=1,IF(AND(YEAR(OcaPaz1+11)=TakvimYılı,MONTH(OcaPaz1+11)=1),OcaPaz1+11,\"\"),IF(AND(YEAR(OcaPaz1+18)=TakvimYılı,MONTH(OcaPaz1+18)=1),OcaPaz1+18,\"\"))","v":"2018-01-18"},{"$f":"IF(DAY(OcaPaz1)=1,IF(AND(YEAR(OcaPaz1+12)=TakvimYılı,MONTH(OcaPaz1+12)=1),OcaPaz1+12,\"\"),IF(AND(YEAR(OcaPaz1+19)=TakvimYılı,MONTH(OcaPaz1+19)=1),OcaPaz1+19,\"\"))","v":"2018-01-19"},{"$f":"IF(DAY(OcaPaz1)=1,IF(AND(YEAR(OcaPaz1+13)=TakvimYılı,MONTH(OcaPaz1+13)=1),OcaPaz1+13,\"\"),IF(AND(YEAR(OcaPaz1+20)=TakvimYılı,MONTH(OcaPaz1+20)=1),OcaPaz1+20,\"\"))","v":"2018-01-20"},{"$f":"IF(DAY(OcaPaz1)=1,IF(AND(YEAR(OcaPaz1+14)=TakvimYılı,MONTH(OcaPaz1+14)=1),OcaPaz1+14,\"\"),IF(AND(YEAR(OcaPaz1+21)=TakvimYılı,MONTH(OcaPaz1+21)=1),OcaPaz1+21,\"\"))","v":"2018-01-21"}]
[]
[null,{"$f":"IF(DAY(OcaPaz1)=1,IF(AND(YEAR(OcaPaz1+15)=TakvimYılı,MONTH(OcaPaz1+15)=1),OcaPaz1+15,\"\"),IF(AND(YEAR(OcaPaz1+22)=TakvimYılı,MONTH(OcaPaz1+22)=1),OcaPaz1+22,\"\"))","v":"2018-01-22"},{"$f":"IF(DAY(OcaPaz1)=1,IF(AND(YEAR(OcaPaz1+16)=TakvimYılı,MONTH(OcaPaz1+16)=1),OcaPaz1+16,\"\"),IF(AND(YEAR(OcaPaz1+23)=TakvimYılı,MONTH(OcaPaz1+23)=1),OcaPaz1+23,\"\"))","v":"2018-01-23"},{"$f":"IF(DAY(OcaPaz1)=1,IF(AND(YEAR(OcaPaz1+17)=TakvimYılı,MONTH(OcaPaz1+17)=1),OcaPaz1+17,\"\"),IF(AND(YEAR(OcaPaz1+24)=TakvimYılı,MONTH(OcaPaz1+24)=1),OcaPaz1+24,\"\"))","v":"2018-01-24"},{"$f":"IF(DAY(OcaPaz1)=1,IF(AND(YEAR(OcaPaz1+18)=TakvimYılı,MONTH(OcaPaz1+18)=1),OcaPaz1+18,\"\"),IF(AND(YEAR(OcaPaz1+25)=TakvimYılı,MONTH(OcaPaz1+25)=1),OcaPaz1+25,\"\"))","v":"2018-01-25"},{"$f":"IF(DAY(OcaPaz1)=1,IF(AND(YEAR(OcaPaz1+19)=TakvimYılı,MONTH(OcaPaz1+19)=1),OcaPaz1+19,\"\"),IF(AND(YEAR(OcaPaz1+26)=TakvimYılı,MONTH(OcaPaz1+26)=1),OcaPaz1+26,\"\"))","v":"2018-01-26"},{"$f":"IF(DAY(OcaPaz1)=1,IF(AND(YEAR(OcaPaz1+20)=TakvimYılı,MONTH(OcaPaz1+20)=1),OcaPaz1+20,\"\"),IF(AND(YEAR(OcaPaz1+27)=TakvimYılı,MONTH(OcaPaz1+27)=1),OcaPaz1+27,\"\"))","v":"2018-01-27"},{"$f":"IF(DAY(OcaPaz1)=1,IF(AND(YEAR(OcaPaz1+21)=TakvimYılı,MONTH(OcaPaz1+21)=1),OcaPaz1+21,\"\"),IF(AND(YEAR(OcaPaz1+28)=TakvimYılı,MONTH(OcaPaz1+28)=1),OcaPaz1+28,\"\"))","v":"2018-01-28"}]
[]
[null,{"$f":"IF(DAY(OcaPaz1)=1,IF(AND(YEAR(OcaPaz1+22)=TakvimYılı,MONTH(OcaPaz1+22)=1),OcaPaz1+22,\"\"),IF(AND(YEAR(OcaPaz1+29)=TakvimYılı,MONTH(OcaPaz1+29)=1),OcaPaz1+29,\"\"))","v":"2018-01-29"},{"$f":"IF(DAY(OcaPaz1)=1,IF(AND(YEAR(OcaPaz1+23)=TakvimYılı,MONTH(OcaPaz1+23)=1),OcaPaz1+23,\"\"),IF(AND(YEAR(OcaPaz1+30)=TakvimYılı,MONTH(OcaPaz1+30)=1),OcaPaz1+30,\"\"))","v":"2018-01-30"},{"$f":"IF(DAY(OcaPaz1)=1,IF(AND(YEAR(OcaPaz1+24)=TakvimYılı,MONTH(OcaPaz1+24)=1),OcaPaz1+24,\"\"),IF(AND(YEAR(OcaPaz1+31)=TakvimYılı,MONTH(OcaPaz1+31)=1),OcaPaz1+31,\"\"))","v":"2018-01-31"},{"$f":"IF(DAY(OcaPaz1)=1,IF(AND(YEAR(OcaPaz1+25)=TakvimYılı,MONTH(OcaPaz1+25)=1),OcaPaz1+25,\"\"),IF(AND(YEAR(OcaPaz1+32)=TakvimYılı,MONTH(OcaPaz1+32)=1),OcaPaz1+32,\"\"))","v":""},{"$f":"IF(DAY(OcaPaz1)=1,IF(AND(YEAR(OcaPaz1+26)=TakvimYılı,MONTH(OcaPaz1+26)=1),OcaPaz1+26,\"\"),IF(AND(YEAR(OcaPaz1+33)=TakvimYılı,MONTH(OcaPaz1+33)=1),OcaPaz1+33,\"\"))","v":""},{"$f":"IF(DAY(OcaPaz1)=1,IF(AND(YEAR(OcaPaz1+27)=TakvimYılı,MONTH(OcaPaz1+27)=1),OcaPaz1+27,\"\"),IF(AND(YEAR(OcaPaz1+34)=TakvimYılı,MONTH(OcaPaz1+34)=1),OcaPaz1+34,\"\"))","v":""},{"$f":"IF(DAY(OcaPaz1)=1,IF(AND(YEAR(OcaPaz1+28)=TakvimYılı,MONTH(OcaPaz1+28)=1),OcaPaz1+28,\"\"),IF(AND(YEAR(OcaPaz1+35)=TakvimYılı,MONTH(OcaPaz1+35)=1),OcaPaz1+35,\"\"))","v":""}]
[]
[null,{"$f":"IF(DAY(OcaPaz1)=1,IF(AND(YEAR(OcaPaz1+29)=TakvimYılı,MONTH(OcaPaz1+29)=1),OcaPaz1+29,\"\"),IF(AND(YEAR(OcaPaz1+36)=TakvimYılı,MONTH(OcaPaz1+36)=1),OcaPaz1+36,\"\"))","v":""},{"$f":"IF(DAY(OcaPaz1)=1,IF(AND(YEAR(OcaPaz1+30)=TakvimYılı,MONTH(OcaPaz1+30)=1),OcaPaz1+30,\"\"),IF(AND(YEAR(OcaPaz1+37)=TakvimYılı,MONTH(OcaPaz1+37)=1),OcaPaz1+37,\"\"))","v":""},"NOTLAR:"]

{"sheet":"Şub","index":1,"n_rows":15,"n_cols":8,"rows_kept":15,"merged":[[2,1,2,5],[14,3,14,7],[15,3,15,7]]}
[]
[]
[null,{"$f":"UPPER(TEXT(DATE(TakvimYılı,2,1),\"aaaa yyyy\"))","v":"ŞUBAT 2018"}]
[null,"PAZARTESİ","SALI","ÇARŞAMBA","PERŞEMBE","CUMA","CUMARTESİ","PAZAR"]
[null,{"$f":"IF(DAY(ŞubPaz1)=1,\"\",IF(AND(YEAR(ŞubPaz1+1)=TakvimYılı,MONTH(ŞubPaz1+1)=2),ŞubPaz1+1,\"\"))","v":""},{"$f":"IF(DAY(ŞubPaz1)=1,\"\",IF(AND(YEAR(ŞubPaz1+2)=TakvimYılı,MONTH(ŞubPaz1+2)=2),ŞubPaz1+2,\"\"))","v":""},{"$f":"IF(DAY(ŞubPaz1)=1,\"\",IF(AND(YEAR(ŞubPaz1+3)=TakvimYılı,MONTH(ŞubPaz1+3)=2),ŞubPaz1+3,\"\"))","v":""},{"$f":"IF(DAY(ŞubPaz1)=1,\"\",IF(AND(YEAR(ŞubPaz1+4)=TakvimYılı,MONTH(ŞubPaz1+4)=2),ŞubPaz1+4,\"\"))","v":"2018-02-01"},{"$f":"IF(DAY(ŞubPaz1)=1,\"\",IF(AND(YEAR(ŞubPaz1+5)=TakvimYılı,MONTH(ŞubPaz1+5)=2),ŞubPaz1+5,\"\"))","v":"2018-02-02"},{"$f":"IF(DAY(ŞubPaz1)=1,\"\",IF(AND(YEAR(ŞubPaz1+6)=TakvimYılı,MONTH(ŞubPaz1+6)=2),ŞubPaz1+6,\"\"))","v":"2018-02-03"},{"$f":"IF(DAY(ŞubPaz1)=1,IF(AND(YEAR(ŞubPaz1)=TakvimYılı,MONTH(ŞubPaz1)=2),ŞubPaz1,\"\"),IF(AND(YEAR(ŞubPaz1+7)=TakvimYılı,MONTH(ŞubPaz1+7)=2),ŞubPaz1+7,\"\"))","v":"2018-02-04"}]
[]
[null,{"$f":"IF(DAY(ŞubPaz1)=1,IF(AND(YEAR(ŞubPaz1+1)=TakvimYılı,MONTH(ŞubPaz1+1)=2),ŞubPaz1+1,\"\"),IF(AND(YEAR(ŞubPaz1+8)=TakvimYılı,MONTH(ŞubPaz1+8)=2),ŞubPaz1+8,\"\"))","v":"2018-02-05"},{"$f":"IF(DAY(ŞubPaz1)=1,IF(AND(YEAR(ŞubPaz1+2)=TakvimYılı,MONTH(ŞubPaz1+2)=2),ŞubPaz1+2,\"\"),IF(AND(YEAR(ŞubPaz1+9)=TakvimYılı,MONTH(ŞubPaz1+9)=2),ŞubPaz1+9,\"\"))","v":"2018-02-06"},{"$f":"IF(DAY(ŞubPaz1)=1,IF(AND(YEAR(ŞubPaz1+3)=TakvimYılı,MONTH(ŞubPaz1+3)=2),ŞubPaz1+3,\"\"),IF(AND(YEAR(ŞubPaz1+10)=TakvimYılı,MONTH(ŞubPaz1+10)=2),ŞubPaz1+10,\"\"))","v":"2018-02-07"},{"$f":"IF(DAY(ŞubPaz1)=1,IF(AND(YEAR(ŞubPaz1+4)=TakvimYılı,MONTH(ŞubPaz1+4)=2),ŞubPaz1+4,\"\"),IF(AND(YEAR(ŞubPaz1+11)=TakvimYılı,MONTH(ŞubPaz1+11)=2),ŞubPaz1+11,\"\"))","v":"2018-02-08"},{"$f":"IF(DAY(ŞubPaz1)=1,IF(AND(YEAR(ŞubPaz1+5)=TakvimYılı,MONTH(ŞubPaz1+5)=2),ŞubPaz1+5,\"\"),IF(AND(YEAR(ŞubPaz1+12)=TakvimYılı,MONTH(ŞubPaz1+12)=2),ŞubPaz1+12,\"\"))","v":"2018-02-09"},{"$f":"IF(DAY(ŞubPaz1)=1,IF(AND(YEAR(ŞubPaz1+6)=TakvimYılı,MONTH(ŞubPaz1+6)=2),ŞubPaz1+6,\"\"),IF(AND(YEAR(ŞubPaz1+13)=TakvimYılı,MONTH(ŞubPaz1+13)=2),ŞubPaz1+13,\"\"))","v":"2018-02-10"},{"$f":"IF(DAY(ŞubPaz1)=1,IF(AND(YEAR(ŞubPaz1+7)=TakvimYılı,MONTH(ŞubPaz1+7)=2),ŞubPaz1+7,\"\"),IF(AND(YEAR(ŞubPaz1+14)=TakvimYılı,MONTH(ŞubPaz1+14)=2),ŞubPaz1+14,\"\"))","v":"2018-02-11"}]
[]
[null,{"$f":"IF(DAY(ŞubPaz1)=1,IF(AND(YEAR(ŞubPaz1+8)=TakvimYılı,MONTH(ŞubPaz1+8)=2),ŞubPaz1+8,\"\"),IF(AND(YEAR(ŞubPaz1+15)=TakvimYılı,MONTH(ŞubPaz1+15)=2),ŞubPaz1+15,\"\"))","v":"2018-02-12"},{"$f":"IF(DAY(ŞubPaz1)=1,IF(AND(YEAR(ŞubPaz1+9)=TakvimYılı,MONTH(ŞubPaz1+9)=2),ŞubPaz1+9,\"\"),IF(AND(YEAR(ŞubPaz1+16)=TakvimYılı,MONTH(ŞubPaz1+16)=2),ŞubPaz1+16,\"\"))","v":"2018-02-13"},{"$f":"IF(DAY(ŞubPaz1)=1,IF(AND(YEAR(ŞubPaz1+10)=TakvimYılı,MONTH(ŞubPaz1+10)=2),ŞubPaz1+10,\"\"),IF(AND(YEAR(ŞubPaz1+17)=TakvimYılı,MONTH(ŞubPaz1+17)=2),ŞubPaz1+17,\"\"))","v":"2018-02-14"},{"$f":"IF(DAY(ŞubPaz1)=1,IF(AND(YEAR(ŞubPaz1+11)=TakvimYılı,MONTH(ŞubPaz1+11)=2),ŞubPaz1+11,\"\"),IF(AND(YEAR(ŞubPaz1+18)=TakvimYılı,MONTH(ŞubPaz1+18)=2),ŞubPaz1+18,\"\"))","v":"2018-02-15"},{"$f":"IF(DAY(ŞubPaz1)=1,IF(AND(YEAR(ŞubPaz1+12)=TakvimYılı,MONTH(ŞubPaz1+12)=2),ŞubPaz1+12,\"\"),IF(AND(YEAR(ŞubPaz1+19)=TakvimYılı,MONTH(ŞubPaz1+19)=2),ŞubPaz1+19,\"\"))","v":"2018-02-16"},{"$f":"IF(DAY(ŞubPaz1)=1,IF(AND(YEAR(ŞubPaz1+13)=TakvimYılı,MONTH(ŞubPaz1+13)=2),ŞubPaz1+13,\"\"),IF(AND(YEAR(ŞubPaz1+20)=TakvimYılı,MONTH(ŞubPaz1+20)=2),ŞubPaz1+20,\"\"))","v":"2018-02-17"},{"$f":"IF(DAY(ŞubPaz1)=1,IF(AND(YEAR(ŞubPaz1+14)=TakvimYılı,MONTH(ŞubPaz1+14)=2),ŞubPaz1+14,\"\"),IF(AND(YEAR(ŞubPaz1+21)=TakvimYılı,MONTH(ŞubPaz1+21)=2),ŞubPaz1+21,\"\"))","v":"2018-02-18"}]
[]
[null,{"$f":"IF(DAY(ŞubPaz1)=1,IF(AND(YEAR(ŞubPaz1+15)=TakvimYılı,MONTH(ŞubPaz1+15)=2),ŞubPaz1+15,\"\"),IF(AND(YEAR(ŞubPaz1+22)=TakvimYılı,MONTH(ŞubPaz1+22)=2),ŞubPaz1+22,\"\"))","v":"2018-02-19"},{"$f":"IF(DAY(ŞubPaz1)=1,IF(AND(YEAR(ŞubPaz1+16)=TakvimYılı,MONTH(ŞubPaz1+16)=2),ŞubPaz1+16,\"\"),IF(AND(YEAR(ŞubPaz1+23)=TakvimYılı,MONTH(ŞubPaz1+23)=2),ŞubPaz1+23,\"\"))","v":"2018-02-20"},{"$f":"IF(DAY(ŞubPaz1)=1,IF(AND(YEAR(ŞubPaz1+17)=TakvimYılı,MONTH(ŞubPaz1+17)=2),ŞubPaz1+17,\"\"),IF(AND(YEAR(ŞubPaz1+24)=TakvimYılı,MONTH(ŞubPaz1+24)=2),ŞubPaz1+24,\"\"))","v":"2018-02-21"},{"$f":"IF(DAY(ŞubPaz1)=1,IF(AND(YEAR(ŞubPaz1+18)=TakvimYılı,MONTH(ŞubPaz1+18)=2),ŞubPaz1+18,\"\"),IF(AND(YEAR(ŞubPaz1+25)=TakvimYılı,MONTH(ŞubPaz1+25)=2),ŞubPaz1+25,\"\"))","v":"2018-02-22"},{"$f":"IF(DAY(ŞubPaz1)=1,IF(AND(YEAR(ŞubPaz1+19)=TakvimYılı,MONTH(ŞubPaz1+19)=2),ŞubPaz1+19,\"\"),IF(AND(YEAR(ŞubPaz1+26)=TakvimYılı,MONTH(ŞubPaz1+26)=2),ŞubPaz1+26,\"\"))","v":"2018-02-23"},{"$f":"IF(DAY(ŞubPaz1)=1,IF(AND(YEAR(ŞubPaz1+20)=TakvimYılı,MONTH(ŞubPaz1+20)=2),ŞubPaz1+20,\"\"),IF(AND(YEAR(ŞubPaz1+27)=TakvimYılı,MONTH(ŞubPaz1+27)=2),ŞubPaz1+27,\"\"))","v":"2018-02-24"},{"$f":"IF(DAY(ŞubPaz1)=1,IF(AND(YEAR(ŞubPaz1+21)=TakvimYılı,MONTH(ŞubPaz1+21)=2),ŞubPaz1+21,\"\"),IF(AND(YEAR(ŞubPaz1+28)=TakvimYılı,MONTH(ŞubPaz1+28)=2),ŞubPaz1+28,\"\"))","v":"2018-02-25"}]
[]
[null,{"$f":"IF(DAY(ŞubPaz1)=1,IF(AND(YEAR(ŞubPaz1+22)=TakvimYılı,MONTH(ŞubPaz1+22)=2),ŞubPaz1+22,\"\"),IF(AND(YEAR(ŞubPaz1+29)=TakvimYılı,MONTH(ŞubPaz1+29)=2),ŞubPaz1+29,\"\"))","v":"2018-02-26"},{"$f":"IF(DAY(ŞubPaz1)=1,IF(AND(YEAR(ŞubPaz1+23)=TakvimYılı,MONTH(ŞubPaz1+23)=2),ŞubPaz1+23,\"\"),IF(AND(YEAR(ŞubPaz1+30)=TakvimYılı,MONTH(ŞubPaz1+30)=2),ŞubPaz1+30,\"\"))","v":"2018-02-27"},{"$f":"IF(DAY(ŞubPaz1)=1,IF(AND(YEAR(ŞubPaz1+24)=TakvimYılı,MONTH(ŞubPaz1+24)=2),ŞubPaz1+24,\"\"),IF(AND(YEAR(ŞubPaz1+31)=TakvimYılı,MONTH(ŞubPaz1+31)=2),ŞubPaz1+31,\"\"))","v":"2018-02-28"},{"$f":"IF(DAY(ŞubPaz1)=1,IF(AND(YEAR(ŞubPaz1+25)=TakvimYılı,MONTH(ŞubPaz1+25)=2),ŞubPaz1+25,\"\"),IF(AND(YEAR(ŞubPaz1+32)=TakvimYılı,MONTH(ŞubPaz1+32)=2),ŞubPaz1+32,\"\"))","v":""},{"$f":"IF(DAY(ŞubPaz1)=1,IF(AND(YEAR(ŞubPaz1+26)=TakvimYılı,MONTH(ŞubPaz1+26)=2),ŞubPaz1+26,\"\"),IF(AND(YEAR(ŞubPaz1+33)=TakvimYılı,MONTH(ŞubPaz1+33)=2),ŞubPaz1+33,\"\"))","v":""},{"$f":"IF(DAY(ŞubPaz1)=1,IF(AND(YEAR(ŞubPaz1+27)=TakvimYılı,MONTH(ŞubPaz1+27)=2),ŞubPaz1+27,\"\"),IF(AND(YEAR(ŞubPaz1+34)=TakvimYılı,MONTH(ŞubPaz1+34)=2),ŞubPaz1+34,\"\"))","v":""},{"$f":"IF(DAY(ŞubPaz1)=1,IF(AND(YEAR(ŞubPaz1+28)=TakvimYılı,MONTH(ŞubPaz1+28)=2),ŞubPaz1+28,\"\"),IF(AND(YEAR(ŞubPaz1+35)=TakvimYılı,MONTH(ŞubPaz1+35)=2),ŞubPaz1+35,\"\"))","v":""}]
[]
[null,{"$f":"IF(DAY(ŞubPaz1)=1,IF(AND(YEAR(ŞubPaz1+29)=TakvimYılı,MONTH(ŞubPaz1+29)=2),ŞubPaz1+29,\"\"),IF(AND(YEAR(ŞubPaz1+36)=TakvimYılı,MONTH(ŞubPaz1+36)=2),ŞubPaz1+36,\"\"))","v":""},{"$f":"IF(DAY(ŞubPaz1)=1,IF(AND(YEAR(ŞubPaz1+30)=TakvimYılı,MONTH(ŞubPaz1+30)=2),ŞubPaz1+30,\"\"),IF(AND(YEAR(ŞubPaz1+37)=TakvimYılı,MONTH(ŞubPaz1+37)=2),ŞubPaz1+37,\"\"))","v":""},"NOTLAR:"]

{"sheet":"Mar","index":2,"n_rows":15,"n_cols":8,"rows_kept":15,"merged":[[2,1,2,5],[14,3,14,7],[15,3,15,7]]}
[]
[]
[null,{"$f":"UPPER(TEXT(DATE(TakvimYılı,3,1),\"aaaa yyyy\"))","v":"MART 2018"}]
[null,"PAZARTESİ","SALI","ÇARŞAMBA","PERŞEMBE","CUMA","CUMARTESİ","PAZAR"]
[null,{"$f":"IF(DAY(MarPaz1)=1,\"\",IF(AND(YEAR(MarPaz1+1)=TakvimYılı,MONTH(MarPaz1+1)=3),MarPaz1+1,\"\"))","v":""},{"$f":"IF(DAY(MarPaz1)=1,\"\",IF(AND(YEAR(MarPaz1+2)=TakvimYılı,MONTH(MarPaz1+2)=3),MarPaz1+2,\"\"))","v":""},{"$f":"IF(DAY(MarPaz1)=1,\"\",IF(AND(YEAR(MarPaz1+3)=TakvimYılı,MONTH(MarPaz1+3)=3),MarPaz1+3,\"\"))","v":""},{"$f":"IF(DAY(MarPaz1)=1,\"\",IF(AND(YEAR(MarPaz1+4)=TakvimYılı,MONTH(MarPaz1+4)=3),MarPaz1+4,\"\"))","v":"2018-03-01"},{"$f":"IF(DAY(MarPaz1)=1,\"\",IF(AND(YEAR(MarPaz1+5)=TakvimYılı,MONTH(MarPaz1+5)=3),MarPaz1+5,\"\"))","v":"2018-03-02"},{"$f":"IF(DAY(MarPaz1)=1,\"\",IF(AND(YEAR(MarPaz1+6)=TakvimYılı,MONTH(MarPaz1+6)=3),MarPaz1+6,\"\"))","v":"2018-03-03"},{"$f":"IF(DAY(MarPaz1)=1,IF(AND(YEAR(MarPaz1)=TakvimYılı,MONTH(MarPaz1)=3),MarPaz1,\"\"),IF(AND(YEAR(MarPaz1+7)=TakvimYılı,MONTH(MarPaz1+7)=3),MarPaz1+7,\"\"))","v":"2018-03-04"}]
[]
[null,{"$f":"IF(DAY(MarPaz1)=1,IF(AND(YEAR(MarPaz1+1)=TakvimYılı,MONTH(MarPaz1+1)=3),MarPaz1+1,\"\"),IF(AND(YEAR(MarPaz1+8)=TakvimYılı,MONTH(MarPaz1+8)=3),MarPaz1+8,\"\"))","v":"2018-03-05"},{"$f":"IF(DAY(MarPaz1)=1,IF(AND(YEAR(MarPaz1+2)=TakvimYılı,MONTH(MarPaz1+2)=3),MarPaz1+2,\"\"),IF(AND(YEAR(MarPaz1+9)=TakvimYılı,MONTH(MarPaz1+9)=3),MarPaz1+9,\"\"))","v":"2018-03-06"},{"$f":"IF(DAY(MarPaz1)=1,IF(AND(YEAR(MarPaz1+3)=TakvimYılı,MONTH(MarPaz1+3)=3),MarPaz1+3,\"\"),IF(AND(YEAR(MarPaz1+10)=TakvimYılı,MONTH(MarPaz1+10)=3),MarPaz1+10,\"\"))","v":"2018-03-07"},{"$f":"IF(DAY(MarPaz1)=1,IF(AND(YEAR(MarPaz1+4)=TakvimYılı,MONTH(MarPaz1+4)=3),MarPaz1+4,\"\"),IF(AND(YEAR(MarPaz1+11)=TakvimYılı,MONTH(MarPaz1+11)=3),MarPaz1+11,\"\"))","v":"2018-03-08"},{"$f":"IF(DAY(MarPaz1)=1,IF(AND(YEAR(MarPaz1+5)=TakvimYılı,MONTH(MarPaz1+5)=3),MarPaz1+5,\"\"),IF(AND(YEAR(MarPaz1+12)=TakvimYılı,MONTH(MarPaz1+12)=3),MarPaz1+12,\"\"))","v":"2018-03-09"},{"$f":"IF(DAY(MarPaz1)=1,IF(AND(YEAR(MarPaz1+6)=TakvimYılı,MONTH(MarPaz1+6)=3),MarPaz1+6,\"\"),IF(AND(YEAR(MarPaz1+13)=TakvimYılı,MONTH(MarPaz1+13)=3),MarPaz1+13,\"\"))","v":"2018-03-10"},{"$f":"IF(DAY(MarPaz1)=1,IF(AND(YEAR(MarPaz1+7)=TakvimYılı,MONTH(MarPaz1+7)=3),MarPaz1+7,\"\"),IF(AND(YEAR(MarPaz1+14)=TakvimYılı,MONTH(MarPaz1+14)=3),MarPaz1+14,\"\"))","v":"2018-03-11"}]
[]
[null,{"$f":"IF(DAY(MarPaz1)=1,IF(AND(YEAR(MarPaz1+8)=TakvimYılı,MONTH(MarPaz1+8)=3),MarPaz1+8,\"\"),IF(AND(YEAR(MarPaz1+15)=TakvimYılı,MONTH(MarPaz1+15)=3),MarPaz1+15,\"\"))","v":"2018-03-12"},{"$f":"IF(DAY(MarPaz1)=1,IF(AND(YEAR(MarPaz1+9)=TakvimYılı,MONTH(MarPaz1+9)=3),MarPaz1+9,\"\"),IF(AND(YEAR(MarPaz1+16)=TakvimYılı,MONTH(MarPaz1+16)=3),MarPaz1+16,\"\"))","v":"2018-03-13"},{"$f":"IF(DAY(MarPaz1)=1,IF(AND(YEAR(MarPaz1+10)=TakvimYılı,MONTH(MarPaz1+10)=3),MarPaz1+10,\"\"),IF(AND(YEAR(MarPaz1+17)=TakvimYılı,MONTH(MarPaz1+17)=3),MarPaz1+17,\"\"))","v":"2018-03-14"},{"$f":"IF(DAY(MarPaz1)=1,IF(AND(YEAR(MarPaz1+11)=TakvimYılı,MONTH(MarPaz1+11)=3),MarPaz1+11,\"\"),IF(AND(YEAR(MarPaz1+18)=TakvimYılı,MONTH(MarPaz1+18)=3),MarPaz1+18,\"\"))","v":"2018-03-15"},{"$f":"IF(DAY(MarPaz1)=1,IF(AND(YEAR(MarPaz1+12)=TakvimYılı,MONTH(MarPaz1+12)=3),MarPaz1+12,\"\"),IF(AND(YEAR(MarPaz1+19)=TakvimYılı,MONTH(MarPaz1+19)=3),MarPaz1+19,\"\"))","v":"2018-03-16"},{"$f":"IF(DAY(MarPaz1)=1,IF(AND(YEAR(MarPaz1+13)=TakvimYılı,MONTH(MarPaz1+13)=3),MarPaz1+13,\"\"),IF(AND(YEAR(MarPaz1+20)=TakvimYılı,MONTH(MarPaz1+20)=3),MarPaz1+20,\"\"))","v":"2018-03-17"},{"$f":"IF(DAY(MarPaz1)=1,IF(AND(YEAR(MarPaz1+14)=TakvimYılı,MONTH(MarPaz1+14)=3),MarPaz1+14,\"\"),IF(AND(YEAR(MarPaz1+21)=TakvimYılı,MONTH(MarPaz1+21)=3),MarPaz1+21,\"\"))","v":"2018-03-18"}]
[]
[null,{"$f":"IF(DAY(MarPaz1)=1,IF(AND(YEAR(MarPaz1+15)=TakvimYılı,MONTH(MarPaz1+15)=3),MarPaz1+15,\"\"),IF(AND(YEAR(MarPaz1+22)=TakvimYılı,MONTH(MarPaz1+22)=3),MarPaz1+22,\"\"))","v":"2018-03-19"},{"$f":"IF(DAY(MarPaz1)=1,IF(AND(YEAR(MarPaz1+16)=TakvimYılı,MONTH(MarPaz1+16)=3),MarPaz1+16,\"\"),IF(AND(YEAR(MarPaz1+23)=TakvimYılı,MONTH(MarPaz1+23)=3),MarPaz1+23,\"\"))","v":"2018-03-20"},{"$f":"IF(DAY(MarPaz1)=1,IF(AND(YEAR(MarPaz1+17)=TakvimYılı,MONTH(MarPaz1+17)=3),MarPaz1+17,\"\"),IF(AND(YEAR(MarPaz1+24)=TakvimYılı,MONTH(MarPaz1+24)=3),MarPaz1+24,\"\"))","v":"2018-03-21"},{"$f":"IF(DAY(MarPaz1)=1,IF(AND(YEAR(MarPaz1+18)=TakvimYılı,MONTH(MarPaz1+18)=3),MarPaz1+18,\"\"),IF(AND(YEAR(MarPaz1+25)=TakvimYılı,MONTH(MarPaz1+25)=3),MarPaz1+25,\"\"))","v":"2018-03-22"},{"$f":"IF(DAY(MarPaz1)=1,IF(AND(YEAR(MarPaz1+19)=TakvimYılı,MONTH(MarPaz1+19)=3),MarPaz1+19,\"\"),IF(AND(YEAR(MarPaz1+26)=TakvimYılı,MONTH(MarPaz1+26)=3),MarPaz1+26,\"\"))","v":"2018-03-23"},{"$f":"IF(DAY(MarPaz1)=1,IF(AND(YEAR(MarPaz1+20)=TakvimYılı,MONTH(MarPaz1+20)=3),MarPaz1+20,\"\"),IF(AND(YEAR(MarPaz1+27)=TakvimYılı,MONTH(MarPaz1+27)=3),MarPaz1+27,\"\"))","v":"2018-03-24"},{"$f":"IF(DAY(MarPaz1)=1,IF(AND(YEAR(MarPaz1+21)=TakvimYılı,MONTH(MarPaz1+21)=3),MarPaz1+21,\"\"),IF(AND(YEAR(MarPaz1+28)=TakvimYılı,MONTH(MarPaz1+28)=3),MarPaz1+28,\"\"))","v":"2018-03-25"}]
[]
[null,{"$f":"IF(DAY(MarPaz1)=1,IF(AND(YEAR(MarPaz1+22)=TakvimYılı,MONTH(MarPaz1+22)=3),MarPaz1+22,\"\"),IF(AND(YEAR(MarPaz1+29)=TakvimYılı,MONTH(MarPaz1+29)=3),MarPaz1+29,\"\"))","v":"2018-03-26"},{"$f":"IF(DAY(MarPaz1)=1,IF(AND(YEAR(MarPaz1+23)=TakvimYılı,MONTH(MarPaz1+23)=3),MarPaz1+23,\"\"),IF(AND(YEAR(MarPaz1+30)=TakvimYılı,MONTH(MarPaz1+30)=3),MarPaz1+30,\"\"))","v":"2018-03-27"},{"$f":"IF(DAY(MarPaz1)=1,IF(AND(YEAR(MarPaz1+24)=TakvimYılı,MONTH(MarPaz1+24)=3),MarPaz1+24,\"\"),IF(AND(YEAR(MarPaz1+31)=TakvimYılı,MONTH(MarPaz1+31)=3),MarPaz1+31,\"\"))","v":"2018-03-28"},{"$f":"IF(DAY(MarPaz1)=1,IF(AND(YEAR(MarPaz1+25)=TakvimYılı,MONTH(MarPaz1+25)=3),MarPaz1+25,\"\"),IF(AND(YEAR(MarPaz1+32)=TakvimYılı,MONTH(MarPaz1+32)=3),MarPaz1+32,\"\"))","v":"2018-03-29"},{"$f":"IF(DAY(MarPaz1)=1,IF(AND(YEAR(MarPaz1+26)=TakvimYılı,MONTH(MarPaz1+26)=3),MarPaz1+26,\"\"),IF(AND(YEAR(MarPaz1+33)=TakvimYılı,MONTH(MarPaz1+33)=3),MarPaz1+33,\"\"))","v":"2018-03-30"},{"$f":"IF(DAY(MarPaz1)=1,IF(AND(YEAR(MarPaz1+27)=TakvimYılı,MONTH(MarPaz1+27)=3),MarPaz1+27,\"\"),IF(AND(YEAR(MarPaz1+34)=TakvimYılı,MONTH(MarPaz1+34)=3),MarPaz1+34,\"\"))","v":"2018-03-31"},{"$f":"IF(DAY(MarPaz1)=1,IF(AND(YEAR(MarPaz1+28)=TakvimYılı,MONTH(MarPaz1+28)=3),MarPaz1+28,\"\"),IF(AND(YEAR(MarPaz1+35)=TakvimYılı,MONTH(MarPaz1+35)=3),MarPaz1+35,\"\"))","v":""}]
[]
[null,{"$f":"IF(DAY(MarPaz1)=1,IF(AND(YEAR(MarPaz1+29)=TakvimYılı,MONTH(MarPaz1+29)=3),MarPaz1+29,\"\"),IF(AND(YEAR(MarPaz1+36)=TakvimYılı,MONTH(MarPaz1+36)=3),MarPaz1+36,\"\"))","v":""},{"$f":"IF(DAY(MarPaz1)=1,IF(AND(YEAR(MarPaz1+30)=TakvimYılı,MONTH(MarPaz1+30)=3),MarPaz1+30,\"\"),IF(AND(YEAR(MarPaz1+37)=TakvimYılı,MONTH(MarPaz1+37)=3),MarPaz1+37,\"\"))","v":""},"NOTLAR:"]

{"sheet":"Nis","index":3,"n_rows":15,"n_cols":8,"rows_kept":15,"merged":[[2,1,2,5],[14,3,14,7],[15,3,15,7]]}
[]
[]
[null,{"$f":"UPPER(TEXT(DATE(TakvimYılı,4,1),\"aaaa yyyy\"))","v":"NİSAN 2018"}]
[null,"PAZARTESİ","SALI","ÇARŞAMBA","PERŞEMBE","CUMA","CUMARTESİ","PAZAR"]
[null,{"$f":"IF(DAY(NisPaz1)=1,\"\",IF(AND(YEAR(NisPaz1+1)=TakvimYılı,MONTH(NisPaz1+1)=4),NisPaz1+1,\"\"))","v":""},{"$f":"IF(DAY(NisPaz1)=1,\"\",IF(AND(YEAR(NisPaz1+2)=TakvimYılı,MONTH(NisPaz1+2)=4),NisPaz1+2,\"\"))","v":""},{"$f":"IF(DAY(NisPaz1)=1,\"\",IF(AND(YEAR(NisPaz1+3)=TakvimYılı,MONTH(NisPaz1+3)=4),NisPaz1+3,\"\"))","v":""},{"$f":"IF(DAY(NisPaz1)=1,\"\",IF(AND(YEAR(NisPaz1+4)=TakvimYılı,MONTH(NisPaz1+4)=4),NisPaz1+4,\"\"))","v":""},{"$f":"IF(DAY(NisPaz1)=1,\"\",IF(AND(YEAR(NisPaz1+5)=TakvimYılı,MONTH(NisPaz1+5)=4),NisPaz1+5,\"\"))","v":""},{"$f":"IF(DAY(NisPaz1)=1,\"\",IF(AND(YEAR(NisPaz1+6)=TakvimYılı,MONTH(NisPaz1+6)=4),NisPaz1+6,\"\"))","v":""},{"$f":"IF(DAY(NisPaz1)=1,IF(AND(YEAR(NisPaz1)=TakvimYılı,MONTH(NisPaz1)=4),NisPaz1,\"\"),IF(AND(YEAR(NisPaz1+7)=TakvimYılı,MONTH(NisPaz1+7)=4),NisPaz1+7,\"\"))","v":"2018-04-01"}]
[]
[null,{"$f":"IF(DAY(NisPaz1)=1,IF(AND(YEAR(NisPaz1+1)=TakvimYılı,MONTH(NisPaz1+1)=4),NisPaz1+1,\"\"),IF(AND(YEAR(NisPaz1+8)=TakvimYılı,MONTH(NisPaz1+8)=4),NisPaz1+8,\"\"))","v":"2018-04-02"},{"$f":"IF(DAY(NisPaz1)=1,IF(AND(YEAR(NisPaz1+2)=TakvimYılı,MONTH(NisPaz1+2)=4),NisPaz1+2,\"\"),IF(AND(YEAR(NisPaz1+9)=TakvimYılı,MONTH(NisPaz1+9)=4),NisPaz1+9,\"\"))","v":"2018-04-03"},{"$f":"IF(DAY(NisPaz1)=1,IF(AND(YEAR(NisPaz1+3)=TakvimYılı,MONTH(NisPaz1+3)=4),NisPaz1+3,\"\"),IF(AND(YEAR(NisPaz1+10)=TakvimYılı,MONTH(NisPaz1+10)=4),NisPaz1+10,\"\"))","v":"2018-04-04"},{"$f":"IF(DAY(NisPaz1)=1,IF(AND(YEAR(NisPaz1+4)=TakvimYılı,MONTH(NisPaz1+4)=4),NisPaz1+4,\"\"),IF(AND(YEAR(NisPaz1+11)=TakvimYılı,MONTH(NisPaz1+11)=4),NisPaz1+11,\"\"))","v":"2018-04-05"},{"$f":"IF(DAY(NisPaz1)=1,IF(AND(YEAR(NisPaz1+5)=TakvimYılı,MONTH(NisPaz1+5)=4),NisPaz1+5,\"\"),IF(AND(YEAR(NisPaz1+12)=TakvimYılı,MONTH(NisPaz1+12)=4),NisPaz1+12,\"\"))","v":"2018-04-06"},{"$f":"IF(DAY(NisPaz1)=1,IF(AND(YEAR(NisPaz1+6)=TakvimYılı,MONTH(NisPaz1+6)=4),NisPaz1+6,\"\"),IF(AND(YEAR(NisPaz1+13)=TakvimYılı,MONTH(NisPaz1+13)=4),NisPaz1+13,\"\"))","v":"2018-04-07"},{"$f":"IF(DAY(NisPaz1)=1,IF(AND(YEAR(NisPaz1+7)=TakvimYılı,MONTH(NisPaz1+7)=4),NisPaz1+7,\"\"),IF(AND(YEAR(NisPaz1+14)=TakvimYılı,MONTH(NisPaz1+14)=4),NisPaz1+14,\"\"))","v":"2018-04-08"}]
[]
[null,{"$f":"IF(DAY(NisPaz1)=1,IF(AND(YEAR(NisPaz1+8)=TakvimYılı,MONTH(NisPaz1+8)=4),NisPaz1+8,\"\"),IF(AND(YEAR(NisPaz1+15)=TakvimYılı,MONTH(NisPaz1+15)=4),NisPaz1+15,\"\"))","v":"2018-04-09"},{"$f":"IF(DAY(NisPaz1)=1,IF(AND(YEAR(NisPaz1+9)=TakvimYılı,MONTH(NisPaz1+9)=4),NisPaz1+9,\"\"),IF(AND(YEAR(NisPaz1+16)=TakvimYılı,MONTH(NisPaz1+16)=4),NisPaz1+16,\"\"))","v":"2018-04-10"},{"$f":"IF(DAY(NisPaz1)=1,IF(AND(YEAR(NisPaz1+10)=TakvimYılı,MONTH(NisPaz1+10)=4),NisPaz1+10,\"\"),IF(AND(YEAR(NisPaz1+17)=TakvimYılı,MONTH(NisPaz1+17)=4),NisPaz1+17,\"\"))","v":"2018-04-11"},{"$f":"IF(DAY(NisPaz1)=1,IF(AND(YEAR(NisPaz1+11)=TakvimYılı,MONTH(NisPaz1+11)=4),NisPaz1+11,\"\"),IF(AND(YEAR(NisPaz1+18)=TakvimYılı,MONTH(NisPaz1+18)=4),NisPaz1+18,\"\"))","v":"2018-04-12"},{"$f":"IF(DAY(NisPaz1)=1,IF(AND(YEAR(NisPaz1+12)=TakvimYılı,MONTH(NisPaz1+12)=4),NisPaz1+12,\"\"),IF(AND(YEAR(NisPaz1+19)=TakvimYılı,MONTH(NisPaz1+19)=4),NisPaz1+19,\"\"))","v":"2018-04-13"},{"$f":"IF(DAY(NisPaz1)=1,IF(AND(YEAR(NisPaz1+13)=TakvimYılı,MONTH(NisPaz1+13)=4),NisPaz1+13,\"\"),IF(AND(YEAR(NisPaz1+20)=TakvimYılı,MONTH(NisPaz1+20)=4),NisPaz1+20,\"\"))","v":"2018-04-14"},{"$f":"IF(DAY(NisPaz1)=1,IF(AND(YEAR(NisPaz1+14)=TakvimYılı,MONTH(NisPaz1+14)=4),NisPaz1+14,\"\"),IF(AND(YEAR(NisPaz1+21)=TakvimYılı,MONTH(NisPaz1+21)=4),NisPaz1+21,\"\"))","v":"2018-04-15"}]
[]
[null,{"$f":"IF(DAY(NisPaz1)=1,IF(AND(YEAR(NisPaz1+15)=TakvimYılı,MONTH(NisPaz1+15)=4),NisPaz1+15,\"\"),IF(AND(YEAR(NisPaz1+22)=TakvimYılı,MONTH(NisPaz1+22)=4),NisPaz1+22,\"\"))","v":"2018-04-16"},{"$f":"IF(DAY(NisPaz1)=1,IF(AND(YEAR(NisPaz1+16)=TakvimYılı,MONTH(NisPaz1+16)=4),NisPaz1+16,\"\"),IF(AND(YEAR(NisPaz1+23)=TakvimYılı,MONTH(NisPaz1+23)=4),NisPaz1+23,\"\"))","v":"2018-04-17"},{"$f":"IF(DAY(NisPaz1)=1,IF(AND(YEAR(NisPaz1+17)=TakvimYılı,MONTH(NisPaz1+17)=4),NisPaz1+17,\"\"),IF(AND(YEAR(NisPaz1+24)=TakvimYılı,MONTH(NisPaz1+24)=4),NisPaz1+24,\"\"))","v":"2018-04-18"},{"$f":"IF(DAY(NisPaz1)=1,IF(AND(YEAR(NisPaz1+18)=TakvimYılı,MONTH(NisPaz1+18)=4),NisPaz1+18,\"\"),IF(AND(YEAR(NisPaz1+25)=TakvimYılı,MONTH(NisPaz1+25)=4),NisPaz1+25,\"\"))","v":"2018-04-19"},{"$f":"IF(DAY(NisPaz1)=1,IF(AND(YEAR(NisPaz1+19)=TakvimYılı,MONTH(NisPaz1+19)=4),NisPaz1+19,\"\"),IF(AND(YEAR(NisPaz1+26)=TakvimYılı,MONTH(NisPaz1+26)=4),NisPaz1+26,\"\"))","v":"2018-04-20"},{"$f":"IF(DAY(NisPaz1)=1,IF(AND(YEAR(NisPaz1+20)=TakvimYılı,MONTH(NisPaz1+20)=4),NisPaz1+20,\"\"),IF(AND(YEAR(NisPaz1+27)=TakvimYılı,MONTH(NisPaz1+27)=4),NisPaz1+27,\"\"))","v":"2018-04-21"},{"$f":"IF(DAY(NisPaz1)=1,IF(AND(YEAR(NisPaz1+21)=TakvimYılı,MONTH(NisPaz1+21)=4),NisPaz1+21,\"\"),IF(AND(YEAR(NisPaz1+28)=TakvimYılı,MONTH(NisPaz1+28)=4),NisPaz1+28,\"\"))","v":"2018-04-22"}]
[]
[null,{"$f":"IF(DAY(NisPaz1)=1,IF(AND(YEAR(NisPaz1+22)=TakvimYılı,MONTH(NisPaz1+22)=4),NisPaz1+22,\"\"),IF(AND(YEAR(NisPaz1+29)=TakvimYılı,MONTH(NisPaz1+29)=4),NisPaz1+29,\"\"))","v":"2018-04-23"},{"$f":"IF(DAY(NisPaz1)=1,IF(AND(YEAR(NisPaz1+23)=TakvimYılı,MONTH(NisPaz1+23)=4),NisPaz1+23,\"\"),IF(AND(YEAR(NisPaz1+30)=TakvimYılı,MONTH(NisPaz1+30)=4),NisPaz1+30,\"\"))","v":"2018-04-24"},{"$f":"IF(DAY(NisPaz1)=1,IF(AND(YEAR(NisPaz1+24)=TakvimYılı,MONTH(NisPaz1+24)=4),NisPaz1+24,\"\"),IF(AND(YEAR(NisPaz1+31)=TakvimYılı,MONTH(NisPaz1+31)=4),NisPaz1+31,\"\"))","v":"2018-04-25"},{"$f":"IF(DAY(NisPaz1)=1,IF(AND(YEAR(NisPaz1+25)=TakvimYılı,MONTH(NisPaz1+25)=4),NisPaz1+25,\"\"),IF(AND(YEAR(NisPaz1+32)=TakvimYılı,MONTH(NisPaz1+32)=4),NisPaz1+32,\"\"))","v":"2018-04-26"},{"$f":"IF(DAY(NisPaz1)=1,IF(AND(YEAR(NisPaz1+26)=TakvimYılı,MONTH(NisPaz1+26)=4),NisPaz1+26,\"\"),IF(AND(YEAR(NisPaz1+33)=TakvimYılı,MONTH(NisPaz1+33)=4),NisPaz1+33,\"\"))","v":"2018-04-27"},{"$f":"IF(DAY(NisPaz1)=1,IF(AND(YEAR(NisPaz1+27)=TakvimYılı,MONTH(NisPaz1+27)=4),NisPaz1+27,\"\"),IF(AND(YEAR(NisPaz1+34)=TakvimYılı,MONTH(NisPaz1+34)=4),NisPaz1+34,\"\"))","v":"2018-04-28"},{"$f":"IF(DAY(NisPaz1)=1,IF(AND(YEAR(NisPaz1+28)=TakvimYılı,MONTH(NisPaz1+28)=4),NisPaz1+28,\"\"),IF(AND(YEAR(NisPaz1+35)=TakvimYılı,MONTH(NisPaz1+35)=4),NisPaz1+35,\"\"))","v":"2018-04-29"}]
[]
[null,{"$f":"IF(DAY(NisPaz1)=1,IF(AND(YEAR(NisPaz1+29)=TakvimYılı,MONTH(NisPaz1+29)=4),NisPaz1+29,\"\"),IF(AND(YEAR(NisPaz1+36)=TakvimYılı,MONTH(NisPaz1+36)=4),NisPaz1+36,\"\"))","v":"2018-04-30"},{"$f":"IF(DAY(NisPaz1)=1,IF(AND(YEAR(NisPaz1+30)=TakvimYılı,MONTH(NisPaz1+30)=4),NisPaz1+30,\"\"),IF(AND(YEAR(NisPaz1+37)=TakvimYılı,MONTH(NisPaz1+37)=4),NisPaz1+37,\"\"))","v":""},"NOTLAR:"]

{"sheet":"May","index":4,"n_rows":15,"n_cols":8,"rows_kept":15,"merged":[[2,1,2,5],[14,3,14,7],[15,3,15,7]]}
[]
[]
[null,{"$f":"UPPER(TEXT(DATE(TakvimYılı,5,1),\"aaaa yyyy\"))","v":"MAYIS 2018"}]
[null,"PAZARTESİ","SALI","ÇARŞAMBA","PERŞEMBE","CUMA","CUMARTESİ","PAZAR"]
[null,{"$f":"IF(DAY(MayPaz1)=1,\"\",IF(AND(YEAR(MayPaz1+1)=TakvimYılı,MONTH(MayPaz1+1)=5),MayPaz1+1,\"\"))","v":""},{"$f":"IF(DAY(MayPaz1)=1,\"\",IF(AND(YEAR(MayPaz1+2)=TakvimYılı,MONTH(MayPaz1+2)=5),MayPaz1+2,\"\"))","v":"2018-05-01"},{"$f":"IF(DAY(MayPaz1)=1,\"\",IF(AND(YEAR(MayPaz1+3)=TakvimYılı,MONTH(MayPaz1+3)=5),MayPaz1+3,\"\"))","v":"2018-05-02"},{"$f":"IF(DAY(MayPaz1)=1,\"\",IF(AND(YEAR(MayPaz1+4)=TakvimYılı,MONTH(MayPaz1+4)=5),MayPaz1+4,\"\"))","v":"2018-05-03"},{"$f":"IF(DAY(MayPaz1)=1,\"\",IF(AND(YEAR(MayPaz1+5)=TakvimYılı,MONTH(MayPaz1+5)=5),MayPaz1+5,\"\"))","v":"2018-05-04"},{"$f":"IF(DAY(MayPaz1)=1,\"\",IF(AND(YEAR(MayPaz1+6)=TakvimYılı,MONTH(MayPaz1+6)=5),MayPaz1+6,\"\"))","v":"2018-05-05"},{"$f":"IF(DAY(MayPaz1)=1,IF(AND(YEAR(MayPaz1)=TakvimYılı,MONTH(MayPaz1)=5),MayPaz1,\"\"),IF(AND(YEAR(MayPaz1+7)=TakvimYılı,MONTH(MayPaz1+7)=5),MayPaz1+7,\"\"))","v":"2018-05-06"}]
[]
[null,{"$f":"IF(DAY(MayPaz1)=1,IF(AND(YEAR(MayPaz1+1)=TakvimYılı,MONTH(MayPaz1+1)=5),MayPaz1+1,\"\"),IF(AND(YEAR(MayPaz1+8)=TakvimYılı,MONTH(MayPaz1+8)=5),MayPaz1+8,\"\"))","v":"2018-05-07"},{"$f":"IF(DAY(MayPaz1)=1,IF(AND(YEAR(MayPaz1+2)=TakvimYılı,MONTH(MayPaz1+2)=5),MayPaz1+2,\"\"),IF(AND(YEAR(MayPaz1+9)=TakvimYılı,MONTH(MayPaz1+9)=5),MayPaz1+9,\"\"))","v":"2018-05-08"},{"$f":"IF(DAY(MayPaz1)=1,IF(AND(YEAR(MayPaz1+3)=TakvimYılı,MONTH(MayPaz1+3)=5),MayPaz1+3,\"\"),IF(AND(YEAR(MayPaz1+10)=TakvimYılı,MONTH(MayPaz1+10)=5),MayPaz1+10,\"\"))","v":"2018-05-09"},{"$f":"IF(DAY(MayPaz1)=1,IF(AND(YEAR(MayPaz1+4)=TakvimYılı,MONTH(MayPaz1+4)=5),MayPaz1+4,\"\"),IF(AND(YEAR(MayPaz1+11)=TakvimYılı,MONTH(MayPaz1+11)=5),MayPaz1+11,\"\"))","v":"2018-05-10"},{"$f":"IF(DAY(MayPaz1)=1,IF(AND(YEAR(MayPaz1+5)=TakvimYılı,MONTH(MayPaz1+5)=5),MayPaz1+5,\"\"),IF(AND(YEAR(MayPaz1+12)=TakvimYılı,MONTH(MayPaz1+12)=5),MayPaz1+12,\"\"))","v":"2018-05-11"},{"$f":"IF(DAY(MayPaz1)=1,IF(AND(YEAR(MayPaz1+6)=TakvimYılı,MONTH(MayPaz1+6)=5),MayPaz1+6,\"\"),IF(AND(YEAR(MayPaz1+13)=TakvimYılı,MONTH(MayPaz1+13)=5),MayPaz1+13,\"\"))","v":"2018-05-12"},{"$f":"IF(DAY(MayPaz1)=1,IF(AND(YEAR(MayPaz1+7)=TakvimYılı,MONTH(MayPaz1+7)=5),MayPaz1+7,\"\"),IF(AND(YEAR(MayPaz1+14)=TakvimYılı,MONTH(MayPaz1+14)=5),MayPaz1+14,\"\"))","v":"2018-05-13"}]
[]
[null,{"$f":"IF(DAY(MayPaz1)=1,IF(AND(YEAR(MayPaz1+8)=TakvimYılı,MONTH(MayPaz1+8)=5),MayPaz1+8,\"\"),IF(AND(YEAR(MayPaz1+15)=TakvimYılı,MONTH(MayPaz1+15)=5),MayPaz1+15,\"\"))","v":"2018-05-14"},{"$f":"IF(DAY(MayPaz1)=1,IF(AND(YEAR(MayPaz1+9)=TakvimYılı,MONTH(MayPaz1+9)=5),MayPaz1+9,\"\"),IF(AND(YEAR(MayPaz1+16)=TakvimYılı,MONTH(MayPaz1+16)=5),MayPaz1+16,\"\"))","v":"2018-05-15"},{"$f":"IF(DAY(MayPaz1)=1,IF(AND(YEAR(MayPaz1+10)=TakvimYılı,MONTH(MayPaz1+10)=5),MayPaz1+10,\"\"),IF(AND(YEAR(MayPaz1+17)=TakvimYılı,MONTH(MayPaz1+17)=5),MayPaz1+17,\"\"))","v":"2018-05-16"},{"$f":"IF(DAY(MayPaz1)=1,IF(AND(YEAR(MayPaz1+11)=TakvimYılı,MONTH(MayPaz1+11)=5),MayPaz1+11,\"\"),IF(AND(YEAR(MayPaz1+18)=TakvimYılı,MONTH(MayPaz1+18)=5),MayPaz1+18,\"\"))","v":"2018-05-17"},{"$f":"IF(DAY(MayPaz1)=1,IF(AND(YEAR(MayPaz1+12)=TakvimYılı,MONTH(MayPaz1+12)=5),MayPaz1+12,\"\"),IF(AND(YEAR(MayPaz1+19)=TakvimYılı,MONTH(MayPaz1+19)=5),MayPaz1+19,\"\"))","v":"2018-05-18"},{"$f":"IF(DAY(MayPaz1)=1,IF(AND(YEAR(MayPaz1+13)=TakvimYılı,MONTH(MayPaz1+13)=5),MayPaz1+13,\"\"),IF(AND(YEAR(MayPaz1+20)=TakvimYılı,MONTH(MayPaz1+20)=5),MayPaz1+20,\"\"))","v":"2018-05-19"},{"$f":"IF(DAY(MayPaz1)=1,IF(AND(YEAR(MayPaz1+14)=TakvimYılı,MONTH(MayPaz1+14)=5),MayPaz1+14,\"\"),IF(AND(YEAR(MayPaz1+21)=TakvimYılı,MONTH(MayPaz1+21)=5),MayPaz1+21,\"\"))","v":"2018-05-20"}]
[]
[null,{"$f":"IF(DAY(MayPaz1)=1,IF(AND(YEAR(MayPaz1+15)=TakvimYılı,MONTH(MayPaz1+15)=5),MayPaz1+15,\"\"),IF(AND(YEAR(MayPaz1+22)=TakvimYılı,MONTH(MayPaz1+22)=5),MayPaz1+22,\"\"))","v":"2018-05-21"},{"$f":"IF(DAY(MayPaz1)=1,IF(AND(YEAR(MayPaz1+16)=TakvimYılı,MONTH(MayPaz1+16)=5),MayPaz1+16,\"\"),IF(AND(YEAR(MayPaz1+23)=TakvimYılı,MONTH(MayPaz1+23)=5),MayPaz1+23,\"\"))","v":"2018-05-22"},{"$f":"IF(DAY(MayPaz1)=1,IF(AND(YEAR(MayPaz1+17)=TakvimYılı,MONTH(MayPaz1+17)=5),MayPaz1+17,\"\"),IF(AND(YEAR(MayPaz1+24)=TakvimYılı,MONTH(MayPaz1+24)=5),MayPaz1+24,\"\"))","v":"2018-05-23"},{"$f":"IF(DAY(MayPaz1)=1,IF(AND(YEAR(MayPaz1+18)=TakvimYılı,MONTH(MayPaz1+18)=5),MayPaz1+18,\"\"),IF(AND(YEAR(MayPaz1+25)=TakvimYılı,MONTH(MayPaz1+25)=5),MayPaz1+25,\"\"))","v":"2018-05-24"},{"$f":"IF(DAY(MayPaz1)=1,IF(AND(YEAR(MayPaz1+19)=TakvimYılı,MONTH(MayPaz1+19)=5),MayPaz1+19,\"\"),IF(AND(YEAR(MayPaz1+26)=TakvimYılı,MONTH(MayPaz1+26)=5),MayPaz1+26,\"\"))","v":"2018-05-25"},{"$f":"IF(DAY(MayPaz1)=1,IF(AND(YEAR(MayPaz1+20)=TakvimYılı,MONTH(MayPaz1+20)=5),MayPaz1+20,\"\"),IF(AND(YEAR(MayPaz1+27)=TakvimYılı,MONTH(MayPaz1+27)=5),MayPaz1+27,\"\"))","v":"2018-05-26"},{"$f":"IF(DAY(MayPaz1)=1,IF(AND(YEAR(MayPaz1+21)=TakvimYılı,MONTH(MayPaz1+21)=5),MayPaz1+21,\"\"),IF(AND(YEAR(MayPaz1+28)=TakvimYılı,MONTH(MayPaz1+28)=5),MayPaz1+28,\"\"))","v":"2018-05-27"}]
[]
[null,{"$f":"IF(DAY(MayPaz1)=1,IF(AND(YEAR(MayPaz1+22)=TakvimYılı,MONTH(MayPaz1+22)=5),MayPaz1+22,\"\"),IF(AND(YEAR(MayPaz1+29)=TakvimYılı,MONTH(MayPaz1+29)=5),MayPaz1+29,\"\"))","v":"2018-05-28"},{"$f":"IF(DAY(MayPaz1)=1,IF(AND(YEAR(MayPaz1+23)=TakvimYılı,MONTH(MayPaz1+23)=5),MayPaz1+23,\"\"),IF(AND(YEAR(MayPaz1+30)=TakvimYılı,MONTH(MayPaz1+30)=5),MayPaz1+30,\"\"))","v":"2018-05-29"},{"$f":"IF(DAY(MayPaz1)=1,IF(AND(YEAR(MayPaz1+24)=TakvimYılı,MONTH(MayPaz1+24)=5),MayPaz1+24,\"\"),IF(AND(YEAR(MayPaz1+31)=TakvimYılı,MONTH(MayPaz1+31)=5),MayPaz1+31,\"\"))","v":"2018-05-30"},{"$f":"IF(DAY(MayPaz1)=1,IF(AND(YEAR(MayPaz1+25)=TakvimYılı,MONTH(MayPaz1+25)=5),MayPaz1+25,\"\"),IF(AND(YEAR(MayPaz1+32)=TakvimYılı,MONTH(MayPaz1+32)=5),MayPaz1+32,\"\"))","v":"2018-05-31"},{"$f":"IF(DAY(MayPaz1)=1,IF(AND(YEAR(MayPaz1+26)=TakvimYılı,MONTH(MayPaz1+26)=5),MayPaz1+26,\"\"),IF(AND(YEAR(MayPaz1+33)=TakvimYılı,MONTH(MayPaz1+33)=5),MayPaz1+33,\"\"))","v":""},{"$f":"IF(DAY(MayPaz1)=1,IF(AND(YEAR(MayPaz1+27)=TakvimYılı,MONTH(MayPaz1+27)=5),MayPaz1+27,\"\"),IF(AND(YEAR(MayPaz1+34)=TakvimYılı,MONTH(MayPaz1+34)=5),MayPaz1+34,\"\"))","v":""},{"$f":"IF(DAY(MayPaz1)=1,IF(AND(YEAR(MayPaz1+28)=TakvimYılı,MONTH(MayPaz1+28)=5),MayPaz1+28,\"\"),IF(AND(YEAR(MayPaz1+35)=TakvimYılı,MONTH(MayPaz1+35)=5),MayPaz1+35,\"\"))","v":""}]
[]
[null,{"$f":"IF(DAY(MayPaz1)=1,IF(AND(YEAR(MayPaz1+29)=TakvimYılı,MONTH(MayPaz1+29)=5),MayPaz1+29,\"\"),IF(AND(YEAR(MayPaz1+36)=TakvimYılı,MONTH(MayPaz1+36)=5),MayPaz1+36,\"\"))","v":""},{"$f":"IF(DAY(MayPaz1)=1,IF(AND(YEAR(MayPaz1+30)=TakvimYılı,MONTH(MayPaz1+30)=5),MayPaz1+30,\"\"),IF(AND(YEAR(MayPaz1+37)=TakvimYılı,MONTH(MayPaz1+37)=5),MayPaz1+37,\"\"))","v":""},"NOTLAR:"]

{"sheet":"Haz","index":5,"n_rows":15,"n_cols":8,"rows_kept":15,"merged":[[2,1,2,5],[14,3,14,7],[15,3,15,7]]}
[]
[]
[null,{"$f":"UPPER(TEXT(DATE(TakvimYılı,6,1),\"aaaa yyyy\"))","v":"HAZİRAN 2018"}]
[null,"PAZARTESİ","SALI","ÇARŞAMBA","PERŞEMBE","CUMA","CUMARTESİ","PAZAR"]
[null,{"$f":"IF(DAY(HazPaz1)=1,\"\",IF(AND(YEAR(HazPaz1+1)=TakvimYılı,MONTH(HazPaz1+1)=6),HazPaz1+1,\"\"))","v":""},{"$f":"IF(DAY(HazPaz1)=1,\"\",IF(AND(YEAR(HazPaz1+2)=TakvimYılı,MONTH(HazPaz1+2)=6),HazPaz1+2,\"\"))","v":""},{"$f":"IF(DAY(HazPaz1)=1,\"\",IF(AND(YEAR(HazPaz1+3)=TakvimYılı,MONTH(HazPaz1+3)=6),HazPaz1+3,\"\"))","v":""},{"$f":"IF(DAY(HazPaz1)=1,\"\",IF(AND(YEAR(HazPaz1+4)=TakvimYılı,MONTH(HazPaz1+4)=6),HazPaz1+4,\"\"))","v":""},{"$f":"IF(DAY(HazPaz1)=1,\"\",IF(AND(YEAR(HazPaz1+5)=TakvimYılı,MONTH(HazPaz1+5)=6),HazPaz1+5,\"\"))","v":"2018-06-01"},{"$f":"IF(DAY(HazPaz1)=1,\"\",IF(AND(YEAR(HazPaz1+6)=TakvimYılı,MONTH(HazPaz1+6)=6),HazPaz1+6,\"\"))","v":"2018-06-02"},{"$f":"IF(DAY(HazPaz1)=1,IF(AND(YEAR(HazPaz1)=TakvimYılı,MONTH(HazPaz1)=6),HazPaz1,\"\"),IF(AND(YEAR(HazPaz1+7)=TakvimYılı,MONTH(HazPaz1+7)=6),HazPaz1+7,\"\"))","v":"2018-06-03"}]
[]
[null,{"$f":"IF(DAY(HazPaz1)=1,IF(AND(YEAR(HazPaz1+1)=TakvimYılı,MONTH(HazPaz1+1)=6),HazPaz1+1,\"\"),IF(AND(YEAR(HazPaz1+8)=TakvimYılı,MONTH(HazPaz1+8)=6),HazPaz1+8,\"\"))","v":"2018-06-04"},{"$f":"IF(DAY(HazPaz1)=1,IF(AND(YEAR(HazPaz1+2)=TakvimYılı,MONTH(HazPaz1+2)=6),HazPaz1+2,\"\"),IF(AND(YEAR(HazPaz1+9)=TakvimYılı,MONTH(HazPaz1+9)=6),HazPaz1+9,\"\"))","v":"2018-06-05"},{"$f":"IF(DAY(HazPaz1)=1,IF(AND(YEAR(HazPaz1+3)=TakvimYılı,MONTH(HazPaz1+3)=6),HazPaz1+3,\"\"),IF(AND(YEAR(HazPaz1+10)=TakvimYılı,MONTH(HazPaz1+10)=6),HazPaz1+10,\"\"))","v":"2018-06-06"},{"$f":"IF(DAY(HazPaz1)=1,IF(AND(YEAR(HazPaz1+4)=TakvimYılı,MONTH(HazPaz1+4)=6),HazPaz1+4,\"\"),IF(AND(YEAR(HazPaz1+11)=TakvimYılı,MONTH(HazPaz1+11)=6),HazPaz1+11,\"\"))","v":"2018-06-07"},{"$f":"IF(DAY(HazPaz1)=1,IF(AND(YEAR(HazPaz1+5)=TakvimYılı,MONTH(HazPaz1+5)=6),HazPaz1+5,\"\"),IF(AND(YEAR(HazPaz1+12)=TakvimYılı,MONTH(HazPaz1+12)=6),HazPaz1+12,\"\"))","v":"2018-06-08"},{"$f":"IF(DAY(HazPaz1)=1,IF(AND(YEAR(HazPaz1+6)=TakvimYılı,MONTH(HazPaz1+6)=6),HazPaz1+6,\"\"),IF(AND(YEAR(HazPaz1+13)=TakvimYılı,MONTH(HazPaz1+13)=6),HazPaz1+13,\"\"))","v":"2018-06-09"},{"$f":"IF(DAY(HazPaz1)=1,IF(AND(YEAR(HazPaz1+7)=TakvimYılı,MONTH(HazPaz1+7)=6),HazPaz1+7,\"\"),IF(AND(YEAR(HazPaz1+14)=TakvimYılı,MONTH(HazPaz1+14)=6),HazPaz1+14,\"\"))","v":"2018-06-10"}]
[]
[null,{"$f":"IF(DAY(HazPaz1)=1,IF(AND(YEAR(HazPaz1+8)=TakvimYılı,MONTH(HazPaz1+8)=6),HazPaz1+8,\"\"),IF(AND(YEAR(HazPaz1+15)=TakvimYılı,MONTH(HazPaz1+15)=6),HazPaz1+15,\"\"))","v":"2018-06-11"},{"$f":"IF(DAY(HazPaz1)=1,IF(AND(YEAR(HazPaz1+9)=TakvimYılı,MONTH(HazPaz1+9)=6),HazPaz1+9,\"\"),IF(AND(YEAR(HazPaz1+16)=TakvimYılı,MONTH(HazPaz1+16)=6),HazPaz1+16,\"\"))","v":"2018-06-12"},{"$f":"IF(DAY(HazPaz1)=1,IF(AND(YEAR(HazPaz1+10)=TakvimYılı,MONTH(HazPaz1+10)=6),HazPaz1+10,\"\"),IF(AND(YEAR(HazPaz1+17)=TakvimYılı,MONTH(HazPaz1+17)=6),HazPaz1+17,\"\"))","v":"2018-06-13"},{"$f":"IF(DAY(HazPaz1)=1,IF(AND(YEAR(HazPaz1+11)=TakvimYılı,MONTH(HazPaz1+11)=6),HazPaz1+11,\"\"),IF(AND(YEAR(HazPaz1+18)=TakvimYılı,MONTH(HazPaz1+18)=6),HazPaz1+18,\"\"))","v":"2018-06-14"},{"$f":"IF(DAY(HazPaz1)=1,IF(AND(YEAR(HazPaz1+12)=TakvimYılı,MONTH(HazPaz1+12)=6),HazPaz1+12,\"\"),IF(AND(YEAR(HazPaz1+19)=TakvimYılı,MONTH(HazPaz1+19)=6),HazPaz1+19,\"\"))","v":"2018-06-15"},{"$f":"IF(DAY(HazPaz1)=1,IF(AND(YEAR(HazPaz1+13)=TakvimYılı,MONTH(HazPaz1+13)=6),HazPaz1+13,\"\"),IF(AND(YEAR(HazPaz1+20)=TakvimYılı,MONTH(HazPaz1+20)=6),HazPaz1+20,\"\"))","v":"2018-06-16"},{"$f":"IF(DAY(HazPaz1)=1,IF(AND(YEAR(HazPaz1+14)=TakvimYılı,MONTH(HazPaz1+14)=6),HazPaz1+14,\"\"),IF(AND(YEAR(HazPaz1+21)=TakvimYılı,MONTH(HazPaz1+21)=6),HazPaz1+21,\"\"))","v":"2018-06-17"}]
[]
[null,{"$f":"IF(DAY(HazPaz1)=1,IF(AND(YEAR(HazPaz1+15)=TakvimYılı,MONTH(HazPaz1+15)=6),HazPaz1+15,\"\"),IF(AND(YEAR(HazPaz1+22)=TakvimYılı,MONTH(HazPaz1+22)=6),HazPaz1+22,\"\"))","v":"2018-06-18"},{"$f":"IF(DAY(HazPaz1)=1,IF(AND(YEAR(HazPaz1+16)=TakvimYılı,MONTH(HazPaz1+16)=6),HazPaz1+16,\"\"),IF(AND(YEAR(HazPaz1+23)=TakvimYılı,MONTH(HazPaz1+23)=6),HazPaz1+23,\"\"))","v":"2018-06-19"},{"$f":"IF(DAY(HazPaz1)=1,IF(AND(YEAR(HazPaz1+17)=TakvimYılı,MONTH(HazPaz1+17)=6),HazPaz1+17,\"\"),IF(AND(YEAR(HazPaz1+24)=TakvimYılı,MONTH(HazPaz1+24)=6),HazPaz1+24,\"\"))","v":"2018-06-20"},{"$f":"IF(DAY(HazPaz1)=1,IF(AND(YEAR(HazPaz1+18)=TakvimYılı,MONTH(HazPaz1+18)=6),HazPaz1+18,\"\"),IF(AND(YEAR(HazPaz1+25)=TakvimYılı,MONTH(HazPaz1+25)=6),HazPaz1+25,\"\"))","v":"2018-06-21"},{"$f":"IF(DAY(HazPaz1)=1,IF(AND(YEAR(HazPaz1+19)=TakvimYılı,MONTH(HazPaz1+19)=6),HazPaz1+19,\"\"),IF(AND(YEAR(HazPaz1+26)=TakvimYılı,MONTH(HazPaz1+26)=6),HazPaz1+26,\"\"))","v":"2018-06-22"},{"$f":"IF(DAY(HazPaz1)=1,IF(AND(YEAR(HazPaz1+20)=TakvimYılı,MONTH(HazPaz1+20)=6),HazPaz1+20,\"\"),IF(AND(YEAR(HazPaz1+27)=TakvimYılı,MONTH(HazPaz1+27)=6),HazPaz1+27,\"\"))","v":"2018-06-23"},{"$f":"IF(DAY(HazPaz1)=1,IF(AND(YEAR(HazPaz1+21)=TakvimYılı,MONTH(HazPaz1+21)=6),HazPaz1+21,\"\"),IF(AND(YEAR(HazPaz1+28)=TakvimYılı,MONTH(HazPaz1+28)=6),HazPaz1+28,\"\"))","v":"2018-06-24"}]
[]
[null,{"$f":"IF(DAY(HazPaz1)=1,IF(AND(YEAR(HazPaz1+22)=TakvimYılı,MONTH(HazPaz1+22)=6),HazPaz1+22,\"\"),IF(AND(YEAR(HazPaz1+29)=TakvimYılı,MONTH(HazPaz1+29)=6),HazPaz1+29,\"\"))","v":"2018-06-25"},{"$f":"IF(DAY(HazPaz1)=1,IF(AND(YEAR(HazPaz1+23)=TakvimYılı,MONTH(HazPaz1+23)=6),HazPaz1+23,\"\"),IF(AND(YEAR(HazPaz1+30)=TakvimYılı,MONTH(HazPaz1+30)=6),HazPaz1+30,\"\"))","v":"2018-06-26"},{"$f":"IF(DAY(HazPaz1)=1,IF(AND(YEAR(HazPaz1+24)=TakvimYılı,MONTH(HazPaz1+24)=6),HazPaz1+24,\"\"),IF(AND(YEAR(HazPaz1+31)=TakvimYılı,MONTH(HazPaz1+31)=6),HazPaz1+31,\"\"))","v":"2018-06-27"},{"$f":"IF(DAY(HazPaz1)=1,IF(AND(YEAR(HazPaz1+25)=TakvimYılı,MONTH(HazPaz1+25)=6),HazPaz1+25,\"\"),IF(AND(YEAR(HazPaz1+32)=TakvimYılı,MONTH(HazPaz1+32)=6),HazPaz1+32,\"\"))","v":"2018-06-28"},{"$f":"IF(DAY(HazPaz1)=1,IF(AND(YEAR(HazPaz1+26)=TakvimYılı,MONTH(HazPaz1+26)=6),HazPaz1+26,\"\"),IF(AND(YEAR(HazPaz1+33)=TakvimYılı,MONTH(HazPaz1+33)=6),HazPaz1+33,\"\"))","v":"2018-06-29"},{"$f":"IF(DAY(HazPaz1)=1,IF(AND(YEAR(HazPaz1+27)=TakvimYılı,MONTH(HazPaz1+27)=6),HazPaz1+27,\"\"),IF(AND(YEAR(HazPaz1+34)=TakvimYılı,MONTH(HazPaz1+34)=6),HazPaz1+34,\"\"))","v":"2018-06-30"},{"$f":"IF(DAY(HazPaz1)=1,IF(AND(YEAR(HazPaz1+28)=TakvimYılı,MONTH(HazPaz1+28)=6),HazPaz1+28,\"\"),IF(AND(YEAR(HazPaz1+35)=TakvimYılı,MONTH(HazPaz1+35)=6),HazPaz1+35,\"\"))","v":""}]
[]
[null,{"$f":"IF(DAY(HazPaz1)=1,IF(AND(YEAR(HazPaz1+29)=TakvimYılı,MONTH(HazPaz1+29)=6),HazPaz1+29,\"\"),IF(AND(YEAR(HazPaz1+36)=TakvimYılı,MONTH(HazPaz1+36)=6),HazPaz1+36,\"\"))","v":""},{"$f":"IF(DAY(HazPaz1)=1,IF(AND(YEAR(HazPaz1+30)=TakvimYılı,MONTH(HazPaz1+30)=6),HazPaz1+30,\"\"),IF(AND(YEAR(HazPaz1+37)=TakvimYılı,MONTH(HazPaz1+37)=6),HazPaz1+37,\"\"))","v":""},"NOTLAR:"]

{"sheet":"Tem","index":6,"n_rows":15,"n_cols":8,"rows_kept":15,"merged":[[2,1,2,5],[14,3,14,7],[15,3,15,7]]}
[]
[]
[null,{"$f":"UPPER(TEXT(DATE(TakvimYılı,7,1),\"aaaa yyyy\"))","v":"TEMMUZ 2018"}]
[null,"PAZARTESİ","SALI","ÇARŞAMBA","PERŞEMBE","CUMA","CUMARTESİ","PAZAR"]
[null,{"$f":"IF(DAY(TemPaz1)=1,\"\",IF(AND(YEAR(TemPaz1+1)=TakvimYılı,MONTH(TemPaz1+1)=7),TemPaz1+1,\"\"))","v":""},{"$f":"IF(DAY(TemPaz1)=1,\"\",IF(AND(YEAR(TemPaz1+2)=TakvimYılı,MONTH(TemPaz1+2)=7),TemPaz1+2,\"\"))","v":""},{"$f":"IF(DAY(TemPaz1)=1,\"\",IF(AND(YEAR(TemPaz1+3)=TakvimYılı,MONTH(TemPaz1+3)=7),TemPaz1+3,\"\"))","v":""},{"$f":"IF(DAY(TemPaz1)=1,\"\",IF(AND(YEAR(TemPaz1+4)=TakvimYılı,MONTH(TemPaz1+4)=7),TemPaz1+4,\"\"))","v":""},{"$f":"IF(DAY(TemPaz1)=1,\"\",IF(AND(YEAR(TemPaz1+5)=TakvimYılı,MONTH(TemPaz1+5)=7),TemPaz1+5,\"\"))","v":""},{"$f":"IF(DAY(TemPaz1)=1,\"\",IF(AND(YEAR(TemPaz1+6)=TakvimYılı,MONTH(TemPaz1+6)=7),TemPaz1+6,\"\"))","v":""},{"$f":"IF(DAY(TemPaz1)=1,IF(AND(YEAR(TemPaz1)=TakvimYılı,MONTH(TemPaz1)=7),TemPaz1,\"\"),IF(AND(YEAR(TemPaz1+7)=TakvimYılı,MONTH(TemPaz1+7)=7),TemPaz1+7,\"\"))","v":"2018-07-01"}]
[]
[null,{"$f":"IF(DAY(TemPaz1)=1,IF(AND(YEAR(TemPaz1+1)=TakvimYılı,MONTH(TemPaz1+1)=7),TemPaz1+1,\"\"),IF(AND(YEAR(TemPaz1+8)=TakvimYılı,MONTH(TemPaz1+8)=7),TemPaz1+8,\"\"))","v":"2018-07-02"},{"$f":"IF(DAY(TemPaz1)=1,IF(AND(YEAR(TemPaz1+2)=TakvimYılı,MONTH(TemPaz1+2)=7),TemPaz1+2,\"\"),IF(AND(YEAR(TemPaz1+9)=TakvimYılı,MONTH(TemPaz1+9)=7),TemPaz1+9,\"\"))","v":"2018-07-03"},{"$f":"IF(DAY(TemPaz1)=1,IF(AND(YEAR(TemPaz1+3)=TakvimYılı,MONTH(TemPaz1+3)=7),TemPaz1+3,\"\"),IF(AND(YEAR(TemPaz1+10)=TakvimYılı,MONTH(TemPaz1+10)=7),TemPaz1+10,\"\"))","v":"2018-07-04"},{"$f":"IF(DAY(TemPaz1)=1,IF(AND(YEAR(TemPaz1+4)=TakvimYılı,MONTH(TemPaz1+4)=7),TemPaz1+4,\"\"),IF(AND(YEAR(TemPaz1+11)=TakvimYılı,MONTH(TemPaz1+11)=7),TemPaz1+11,\"\"))","v":"2018-07-05"},{"$f":"IF(DAY(TemPaz1)=1,IF(AND(YEAR(TemPaz1+5)=TakvimYılı,MONTH(TemPaz1+5)=7),TemPaz1+5,\"\"),IF(AND(YEAR(TemPaz1+12)=TakvimYılı,MONTH(TemPaz1+12)=7),TemPaz1+12,\"\"))","v":"2018-07-06"},{"$f":"IF(DAY(TemPaz1)=1,IF(AND(YEAR(TemPaz1+6)=TakvimYılı,MONTH(TemPaz1+6)=7),TemPaz1+6,\"\"),IF(AND(YEAR(TemPaz1+13)=TakvimYılı,MONTH(TemPaz1+13)=7),TemPaz1+13,\"\"))","v":"2018-07-07"},{"$f":"IF(DAY(TemPaz1)=1,IF(AND(YEAR(TemPaz1+7)=TakvimYılı,MONTH(TemPaz1+7)=7),TemPaz1+7,\"\"),IF(AND(YEAR(TemPaz1+14)=TakvimYılı,MONTH(TemPaz1+14)=7),TemPaz1+14,\"\"))","v":"2018-07-08"}]
[]
[null,{"$f":"IF(DAY(TemPaz1)=1,IF(AND(YEAR(TemPaz1+8)=TakvimYılı,MONTH(TemPaz1+8)=7),TemPaz1+8,\"\"),IF(AND(YEAR(TemPaz1+15)=TakvimYılı,MONTH(TemPaz1+15)=7),TemPaz1+15,\"\"))","v":"2018-07-09"},{"$f":"IF(DAY(TemPaz1)=1,IF(AND(YEAR(TemPaz1+9)=TakvimYılı,MONTH(TemPaz1+9)=7),TemPaz1+9,\"\"),IF(AND(YEAR(TemPaz1+16)=TakvimYılı,MONTH(TemPaz1+16)=7),TemPaz1+16,\"\"))","v":"2018-07-10"},{"$f":"IF(DAY(TemPaz1)=1,IF(AND(YEAR(TemPaz1+10)=TakvimYılı,MONTH(TemPaz1+10)=7),TemPaz1+10,\"\"),IF(AND(YEAR(TemPaz1+17)=TakvimYılı,MONTH(TemPaz1+17)=7),TemPaz1+17,\"\"))","v":"2018-07-11"},{"$f":"IF(DAY(TemPaz1)=1,IF(AND(YEAR(TemPaz1+11)=TakvimYılı,MONTH(TemPaz1+11)=7),TemPaz1+11,\"\"),IF(AND(YEAR(TemPaz1+18)=TakvimYılı,MONTH(TemPaz1+18)=7),TemPaz1+18,\"\"))","v":"2018-07-12"},{"$f":"IF(DAY(TemPaz1)=1,IF(AND(YEAR(TemPaz1+12)=TakvimYılı,MONTH(TemPaz1+12)=7),TemPaz1+12,\"\"),IF(AND(YEAR(TemPaz1+19)=TakvimYılı,MONTH(TemPaz1+19)=7),TemPaz1+19,\"\"))","v":"2018-07-13"},{"$f":"IF(DAY(TemPaz1)=1,IF(AND(YEAR(TemPaz1+13)=TakvimYılı,MONTH(TemPaz1+13)=7),TemPaz1+13,\"\"),IF(AND(YEAR(TemPaz1+20)=TakvimYılı,MONTH(TemPaz1+20)=7),TemPaz1+20,\"\"))","v":"2018-07-14"},{"$f":"IF(DAY(TemPaz1)=1,IF(AND(YEAR(TemPaz1+14)=TakvimYılı,MONTH(TemPaz1+14)=7),TemPaz1+14,\"\"),IF(AND(YEAR(TemPaz1+21)=TakvimYılı,MONTH(TemPaz1+21)=7),TemPaz1+21,\"\"))","v":"2018-07-15"}]
[]
[null,{"$f":"IF(DAY(TemPaz1)=1,IF(AND(YEAR(TemPaz1+15)=TakvimYılı,MONTH(TemPaz1+15)=7),TemPaz1+15,\"\"),IF(AND(YEAR(TemPaz1+22)=TakvimYılı,MONTH(TemPaz1+22)=7),TemPaz1+22,\"\"))","v":"2018-07-16"},{"$f":"IF(DAY(TemPaz1)=1,IF(AND(YEAR(TemPaz1+16)=TakvimYılı,MONTH(TemPaz1+16)=7),TemPaz1+16,\"\"),IF(AND(YEAR(TemPaz1+23)=TakvimYılı,MONTH(TemPaz1+23)=7),TemPaz1+23,\"\"))","v":"2018-07-17"},{"$f":"IF(DAY(TemPaz1)=1,IF(AND(YEAR(TemPaz1+17)=TakvimYılı,MONTH(TemPaz1+17)=7),TemPaz1+17,\"\"),IF(AND(YEAR(TemPaz1+24)=TakvimYılı,MONTH(TemPaz1+24)=7),TemPaz1+24,\"\"))","v":"2018-07-18"},{"$f":"IF(DAY(TemPaz1)=1,IF(AND(YEAR(TemPaz1+18)=TakvimYılı,MONTH(TemPaz1+18)=7),TemPaz1+18,\"\"),IF(AND(YEAR(TemPaz1+25)=TakvimYılı,MONTH(TemPaz1+25)=7),TemPaz1+25,\"\"))","v":"2018-07-19"},{"$f":"IF(DAY(TemPaz1)=1,IF(AND(YEAR(TemPaz1+19)=TakvimYılı,MONTH(TemPaz1+19)=7),TemPaz1+19,\"\"),IF(AND(YEAR(TemPaz1+26)=TakvimYılı,MONTH(TemPaz1+26)=7),TemPaz1+26,\"\"))","v":"2018-07-20"},{"$f":"IF(DAY(TemPaz1)=1,IF(AND(YEAR(TemPaz1+20)=TakvimYılı,MONTH(TemPaz1+20)=7),TemPaz1+20,\"\"),IF(AND(YEAR(TemPaz1+27)=TakvimYılı,MONTH(TemPaz1+27)=7),TemPaz1+27,\"\"))","v":"2018-07-21"},{"$f":"IF(DAY(TemPaz1)=1,IF(AND(YEAR(TemPaz1+21)=TakvimYılı,MONTH(TemPaz1+21)=7),TemPaz1+21,\"\"),IF(AND(YEAR(TemPaz1+28)=TakvimYılı,MONTH(TemPaz1+28)=7),TemPaz1+28,\"\"))","v":"2018-07-22"}]
[]
[null,{"$f":"IF(DAY(TemPaz1)=1,IF(AND(YEAR(TemPaz1+22)=TakvimYılı,MONTH(TemPaz1+22)=7),TemPaz1+22,\"\"),IF(AND(YEAR(TemPaz1+29)=TakvimYılı,MONTH(TemPaz1+29)=7),TemPaz1+29,\"\"))","v":"2018-07-23"},{"$f":"IF(DAY(TemPaz1)=1,IF(AND(YEAR(TemPaz1+23)=TakvimYılı,MONTH(TemPaz1+23)=7),TemPaz1+23,\"\"),IF(AND(YEAR(TemPaz1+30)=TakvimYılı,MONTH(TemPaz1+30)=7),TemPaz1+30,\"\"))","v":"2018-07-24"},{"$f":"IF(DAY(TemPaz1)=1,IF(AND(YEAR(TemPaz1+24)=TakvimYılı,MONTH(TemPaz1+24)=7),TemPaz1+24,\"\"),IF(AND(YEAR(TemPaz1+31)=TakvimYılı,MONTH(TemPaz1+31)=7),TemPaz1+31,\"\"))","v":"2018-07-25"},{"$f":"IF(DAY(TemPaz1)=1,IF(AND(YEAR(TemPaz1+25)=TakvimYılı,MONTH(TemPaz1+25)=7),TemPaz1+25,\"\"),IF(AND(YEAR(TemPaz1+32)=TakvimYılı,MONTH(TemPaz1+32)=7),TemPaz1+32,\"\"))","v":"2018-07-26"},{"$f":"IF(DAY(TemPaz1)=1,IF(AND(YEAR(TemPaz1+26)=TakvimYılı,MONTH(TemPaz1+26)=7),TemPaz1+26,\"\"),IF(AND(YEAR(TemPaz1+33)=TakvimYılı,MONTH(TemPaz1+33)=7),TemPaz1+33,\"\"))","v":"2018-07-27"},{"$f":"IF(DAY(TemPaz1)=1,IF(AND(YEAR(TemPaz1+27)=TakvimYılı,MONTH(TemPaz1+27)=7),TemPaz1+27,\"\"),IF(AND(YEAR(TemPaz1+34)=TakvimYılı,MONTH(TemPaz1+34)=7),TemPaz1+34,\"\"))","v":"2018-07-28"},{"$f":"IF(DAY(TemPaz1)=1,IF(AND(YEAR(TemPaz1+28)=TakvimYılı,MONTH(TemPaz1+28)=7),TemPaz1+28,\"\"),IF(AND(YEAR(TemPaz1+35)=TakvimYılı,MONTH(TemPaz1+35)=7),TemPaz1+35,\"\"))","v":"2018-07-29"}]
[]
[null,{"$f":"IF(DAY(TemPaz1)=1,IF(AND(YEAR(TemPaz1+29)=TakvimYılı,MONTH(TemPaz1+29)=7),TemPaz1+29,\"\"),IF(AND(YEAR(TemPaz1+36)=TakvimYılı,MONTH(TemPaz1+36)=7),TemPaz1+36,\"\"))","v":"2018-07-30"},{"$f":"IF(DAY(TemPaz1)=1,IF(AND(YEAR(TemPaz1+30)=TakvimYılı,MONTH(TemPaz1+30)=7),TemPaz1+30,\"\"),IF(AND(YEAR(TemPaz1+37)=TakvimYılı,MONTH(TemPaz1+37)=7),TemPaz1+37,\"\"))","v":"2018-07-31"},"NOTLAR:"]

{"sheet":"Ağu","index":7,"n_rows":15,"n_cols":8,"rows_kept":15,"merged":[[2,1,2,5],[14,3,14,7],[15,3,15,7]]}
[]
[]
[null,{"$f":"UPPER(TEXT(DATE(TakvimYılı,8,1),\"aaaa yyyy\"))","v":"AĞUSTOS 2018"}]
[null,"PAZARTESİ","SALI","ÇARŞAMBA","PERŞEMBE","CUMA","CUMARTESİ","PAZAR"]
[null,{"$f":"IF(DAY(AğuPaz1)=1,\"\",IF(AND(YEAR(AğuPaz1+1)=TakvimYılı,MONTH(AğuPaz1+1)=8),AğuPaz1+1,\"\"))","v":""},{"$f":"IF(DAY(AğuPaz1)=1,\"\",IF(AND(YEAR(AğuPaz1+2)=TakvimYılı,MONTH(AğuPaz1+2)=8),AğuPaz1+2,\"\"))","v":""},{"$f":"IF(DAY(AğuPaz1)=1,\"\",IF(AND(YEAR(AğuPaz1+3)=TakvimYılı,MONTH(AğuPaz1+3)=8),AğuPaz1+3,\"\"))","v":"2018-08-01"},{"$f":"IF(DAY(AğuPaz1)=1,\"\",IF(AND(YEAR(AğuPaz1+4)=TakvimYılı,MONTH(AğuPaz1+4)=8),AğuPaz1+4,\"\"))","v":"2018-08-02"},{"$f":"IF(DAY(AğuPaz1)=1,\"\",IF(AND(YEAR(AğuPaz1+5)=TakvimYılı,MONTH(AğuPaz1+5)=8),AğuPaz1+5,\"\"))","v":"2018-08-03"},{"$f":"IF(DAY(AğuPaz1)=1,\"\",IF(AND(YEAR(AğuPaz1+6)=TakvimYılı,MONTH(AğuPaz1+6)=8),AğuPaz1+6,\"\"))","v":"2018-08-04"},{"$f":"IF(DAY(AğuPaz1)=1,IF(AND(YEAR(AğuPaz1)=TakvimYılı,MONTH(AğuPaz1)=8),AğuPaz1,\"\"),IF(AND(YEAR(AğuPaz1+7)=TakvimYılı,MONTH(AğuPaz1+7)=8),AğuPaz1+7,\"\"))","v":"2018-08-05"}]
[]
[null,{"$f":"IF(DAY(AğuPaz1)=1,IF(AND(YEAR(AğuPaz1+1)=TakvimYılı,MONTH(AğuPaz1+1)=8),AğuPaz1+1,\"\"),IF(AND(YEAR(AğuPaz1+8)=TakvimYılı,MONTH(AğuPaz1+8)=8),AğuPaz1+8,\"\"))","v":"2018-08-06"},{"$f":"IF(DAY(AğuPaz1)=1,IF(AND(YEAR(AğuPaz1+2)=TakvimYılı,MONTH(AğuPaz1+2)=8),AğuPaz1+2,\"\"),IF(AND(YEAR(AğuPaz1+9)=TakvimYılı,MONTH(AğuPaz1+9)=8),AğuPaz1+9,\"\"))","v":"2018-08-07"},{"$f":"IF(DAY(AğuPaz1)=1,IF(AND(YEAR(AğuPaz1+3)=TakvimYılı,MONTH(AğuPaz1+3)=8),AğuPaz1+3,\"\"),IF(AND(YEAR(AğuPaz1+10)=TakvimYılı,MONTH(AğuPaz1+10)=8),AğuPaz1+10,\"\"))","v":"2018-08-08"},{"$f":"IF(DAY(AğuPaz1)=1,IF(AND(YEAR(AğuPaz1+4)=TakvimYılı,MONTH(AğuPaz1+4)=8),AğuPaz1+4,\"\"),IF(AND(YEAR(AğuPaz1+11)=TakvimYılı,MONTH(AğuPaz1+11)=8),AğuPaz1+11,\"\"))","v":"2018-08-09"},{"$f":"IF(DAY(AğuPaz1)=1,IF(AND(YEAR(AğuPaz1+5)=TakvimYılı,MONTH(AğuPaz1+5)=8),AğuPaz1+5,\"\"),IF(AND(YEAR(AğuPaz1+12)=TakvimYılı,MONTH(AğuPaz1+12)=8),AğuPaz1+12,\"\"))","v":"2018-08-10"},{"$f":"IF(DAY(AğuPaz1)=1,IF(AND(YEAR(AğuPaz1+6)=TakvimYılı,MONTH(AğuPaz1+6)=8),AğuPaz1+6,\"\"),IF(AND(YEAR(AğuPaz1+13)=TakvimYılı,MONTH(AğuPaz1+13)=8),AğuPaz1+13,\"\"))","v":"2018-08-11"},{"$f":"IF(DAY(AğuPaz1)=1,IF(AND(YEAR(AğuPaz1+7)=TakvimYılı,MONTH(AğuPaz1+7)=8),AğuPaz1+7,\"\"),IF(AND(YEAR(AğuPaz1+14)=TakvimYılı,MONTH(AğuPaz1+14)=8),AğuPaz1+14,\"\"))","v":"2018-08-12"}]
[]
[null,{"$f":"IF(DAY(AğuPaz1)=1,IF(AND(YEAR(AğuPaz1+8)=TakvimYılı,MONTH(AğuPaz1+8)=8),AğuPaz1+8,\"\"),IF(AND(YEAR(AğuPaz1+15)=TakvimYılı,MONTH(AğuPaz1+15)=8),AğuPaz1+15,\"\"))","v":"2018-08-13"},{"$f":"IF(DAY(AğuPaz1)=1,IF(AND(YEAR(AğuPaz1+9)=TakvimYılı,MONTH(AğuPaz1+9)=8),AğuPaz1+9,\"\"),IF(AND(YEAR(AğuPaz1+16)=TakvimYılı,MONTH(AğuPaz1+16)=8),AğuPaz1+16,\"\"))","v":"2018-08-14"},{"$f":"IF(DAY(AğuPaz1)=1,IF(AND(YEAR(AğuPaz1+10)=TakvimYılı,MONTH(AğuPaz1+10)=8),AğuPaz1+10,\"\"),IF(AND(YEAR(AğuPaz1+17)=TakvimYılı,MONTH(AğuPaz1+17)=8),AğuPaz1+17,\"\"))","v":"2018-08-15"},{"$f":"IF(DAY(AğuPaz1)=1,IF(AND(YEAR(AğuPaz1+11)=TakvimYılı,MONTH(AğuPaz1+11)=8),AğuPaz1+11,\"\"),IF(AND(YEAR(AğuPaz1+18)=TakvimYılı,MONTH(AğuPaz1+18)=8),AğuPaz1+18,\"\"))","v":"2018-08-16"},{"$f":"IF(DAY(AğuPaz1)=1,IF(AND(YEAR(AğuPaz1+12)=TakvimYılı,MONTH(AğuPaz1+12)=8),AğuPaz1+12,\"\"),IF(AND(YEAR(AğuPaz1+19)=TakvimYılı,MONTH(AğuPaz1+19)=8),AğuPaz1+19,\"\"))","v":"2018-08-17"},{"$f":"IF(DAY(AğuPaz1)=1,IF(AND(YEAR(AğuPaz1+13)=TakvimYılı,MONTH(AğuPaz1+13)=8),AğuPaz1+13,\"\"),IF(AND(YEAR(AğuPaz1+20)=TakvimYılı,MONTH(AğuPaz1+20)=8),AğuPaz1+20,\"\"))","v":"2018-08-18"},{"$f":"IF(DAY(AğuPaz1)=1,IF(AND(YEAR(AğuPaz1+14)=TakvimYılı,MONTH(AğuPaz1+14)=8),AğuPaz1+14,\"\"),IF(AND(YEAR(AğuPaz1+21)=TakvimYılı,MONTH(AğuPaz1+21)=8),AğuPaz1+21,\"\"))","v":"2018-08-19"}]
[]
[null,{"$f":"IF(DAY(AğuPaz1)=1,IF(AND(YEAR(AğuPaz1+15)=TakvimYılı,MONTH(AğuPaz1+15)=8),AğuPaz1+15,\"\"),IF(AND(YEAR(AğuPaz1+22)=TakvimYılı,MONTH(AğuPaz1+22)=8),AğuPaz1+22,\"\"))","v":"2018-08-20"},{"$f":"IF(DAY(AğuPaz1)=1,IF(AND(YEAR(AğuPaz1+16)=TakvimYılı,MONTH(AğuPaz1+16)=8),AğuPaz1+16,\"\"),IF(AND(YEAR(AğuPaz1+23)=TakvimYılı,MONTH(AğuPaz1+23)=8),AğuPaz1+23,\"\"))","v":"2018-08-21"},{"$f":"IF(DAY(AğuPaz1)=1,IF(AND(YEAR(AğuPaz1+17)=TakvimYılı,MONTH(AğuPaz1+17)=8),AğuPaz1+17,\"\"),IF(AND(YEAR(AğuPaz1+24)=TakvimYılı,MONTH(AğuPaz1+24)=8),AğuPaz1+24,\"\"))","v":"2018-08-22"},{"$f":"IF(DAY(AğuPaz1)=1,IF(AND(YEAR(AğuPaz1+18)=TakvimYılı,MONTH(AğuPaz1+18)=8),AğuPaz1+18,\"\"),IF(AND(YEAR(AğuPaz1+25)=TakvimYılı,MONTH(AğuPaz1+25)=8),AğuPaz1+25,\"\"))","v":"2018-08-23"},{"$f":"IF(DAY(AğuPaz1)=1,IF(AND(YEAR(AğuPaz1+19)=TakvimYılı,MONTH(AğuPaz1+19)=8),AğuPaz1+19,\"\"),IF(AND(YEAR(AğuPaz1+26)=TakvimYılı,MONTH(AğuPaz1+26)=8),AğuPaz1+26,\"\"))","v":"2018-08-24"},{"$f":"IF(DAY(AğuPaz1)=1,IF(AND(YEAR(AğuPaz1+20)=TakvimYılı,MONTH(AğuPaz1+20)=8),AğuPaz1+20,\"\"),IF(AND(YEAR(AğuPaz1+27)=TakvimYılı,MONTH(AğuPaz1+27)=8),AğuPaz1+27,\"\"))","v":"2018-08-25"},{"$f":"IF(DAY(AğuPaz1)=1,IF(AND(YEAR(AğuPaz1+21)=TakvimYılı,MONTH(AğuPaz1+21)=8),AğuPaz1+21,\"\"),IF(AND(YEAR(AğuPaz1+28)=TakvimYılı,MONTH(AğuPaz1+28)=8),AğuPaz1+28,\"\"))","v":"2018-08-26"}]
[]
[null,{"$f":"IF(DAY(AğuPaz1)=1,IF(AND(YEAR(AğuPaz1+22)=TakvimYılı,MONTH(AğuPaz1+22)=8),AğuPaz1+22,\"\"),IF(AND(YEAR(AğuPaz1+29)=TakvimYılı,MONTH(AğuPaz1+29)=8),AğuPaz1+29,\"\"))","v":"2018-08-27"},{"$f":"IF(DAY(AğuPaz1)=1,IF(AND(YEAR(AğuPaz1+23)=TakvimYılı,MONTH(AğuPaz1+23)=8),AğuPaz1+23,\"\"),IF(AND(YEAR(AğuPaz1+30)=TakvimYılı,MONTH(AğuPaz1+30)=8),AğuPaz1+30,\"\"))","v":"2018-08-28"},{"$f":"IF(DAY(AğuPaz1)=1,IF(AND(YEAR(AğuPaz1+24)=TakvimYılı,MONTH(AğuPaz1+24)=8),AğuPaz1+24,\"\"),IF(AND(YEAR(AğuPaz1+31)=TakvimYılı,MONTH(AğuPaz1+31)=8),AğuPaz1+31,\"\"))","v":"2018-08-29"},{"$f":"IF(DAY(AğuPaz1)=1,IF(AND(YEAR(AğuPaz1+25)=TakvimYılı,MONTH(AğuPaz1+25)=8),AğuPaz1+25,\"\"),IF(AND(YEAR(AğuPaz1+32)=TakvimYılı,MONTH(AğuPaz1+32)=8),AğuPaz1+32,\"\"))","v":"2018-08-30"},{"$f":"IF(DAY(AğuPaz1)=1,IF(AND(YEAR(AğuPaz1+26)=TakvimYılı,MONTH(AğuPaz1+26)=8),AğuPaz1+26,\"\"),IF(AND(YEAR(AğuPaz1+33)=TakvimYılı,MONTH(AğuPaz1+33)=8),AğuPaz1+33,\"\"))","v":"2018-08-31"},{"$f":"IF(DAY(AğuPaz1)=1,IF(AND(YEAR(AğuPaz1+27)=TakvimYılı,MONTH(AğuPaz1+27)=8),AğuPaz1+27,\"\"),IF(AND(YEAR(AğuPaz1+34)=TakvimYılı,MONTH(AğuPaz1+34)=8),AğuPaz1+34,\"\"))","v":""},{"$f":"IF(DAY(AğuPaz1)=1,IF(AND(YEAR(AğuPaz1+28)=TakvimYılı,MONTH(AğuPaz1+28)=8),AğuPaz1+28,\"\"),IF(AND(YEAR(AğuPaz1+35)=TakvimYılı,MONTH(AğuPaz1+35)=8),AğuPaz1+35,\"\"))","v":""}]
[]
[null,{"$f":"IF(DAY(AğuPaz1)=1,IF(AND(YEAR(AğuPaz1+29)=TakvimYılı,MONTH(AğuPaz1+29)=8),AğuPaz1+29,\"\"),IF(AND(YEAR(AğuPaz1+36)=TakvimYılı,MONTH(AğuPaz1+36)=8),AğuPaz1+36,\"\"))","v":""},{"$f":"IF(DAY(AğuPaz1)=1,IF(AND(YEAR(AğuPaz1+30)=TakvimYılı,MONTH(AğuPaz1+30)=8),AğuPaz1+30,\"\"),IF(AND(YEAR(AğuPaz1+37)=TakvimYılı,MONTH(AğuPaz1+37)=8),AğuPaz1+37,\"\"))","v":""},"NOTLAR:"]

{"sheet":"Eyl","index":8,"n_rows":15,"n_cols":8,"rows_kept":15,"merged":[[2,1,2,5],[14,3,14,7],[15,3,15,7]]}
[]
[]
[null,{"$f":"UPPER(TEXT(DATE(TakvimYılı,9,1),\"aaaa yyyy\"))","v":"EYLÜL 2018"}]
[null,"PAZARTESİ","SALI","ÇARŞAMBA","PERŞEMBE","CUMA","CUMARTESİ","PAZAR"]
[null,{"$f":"IF(DAY(EylPaz1)=1,\"\",IF(AND(YEAR(EylPaz1+1)=TakvimYılı,MONTH(EylPaz1+1)=9),EylPaz1+1,\"\"))","v":""},{"$f":"IF(DAY(EylPaz1)=1,\"\",IF(AND(YEAR(EylPaz1+2)=TakvimYılı,MONTH(EylPaz1+2)=9),EylPaz1+2,\"\"))","v":""},{"$f":"IF(DAY(EylPaz1)=1,\"\",IF(AND(YEAR(EylPaz1+3)=TakvimYılı,MONTH(EylPaz1+3)=9),EylPaz1+3,\"\"))","v":""},{"$f":"IF(DAY(EylPaz1)=1,\"\",IF(AND(YEAR(EylPaz1+4)=TakvimYılı,MONTH(EylPaz1+4)=9),EylPaz1+4,\"\"))","v":""},{"$f":"IF(DAY(EylPaz1)=1,\"\",IF(AND(YEAR(EylPaz1+5)=TakvimYılı,MONTH(EylPaz1+5)=9),EylPaz1+5,\"\"))","v":""},{"$f":"IF(DAY(EylPaz1)=1,\"\",IF(AND(YEAR(EylPaz1+6)=TakvimYılı,MONTH(EylPaz1+6)=9),EylPaz1+6,\"\"))","v":"2018-09-01"},{"$f":"IF(DAY(EylPaz1)=1,IF(AND(YEAR(EylPaz1)=TakvimYılı,MONTH(EylPaz1)=9),EylPaz1,\"\"),IF(AND(YEAR(EylPaz1+7)=TakvimYılı,MONTH(EylPaz1+7)=9),EylPaz1+7,\"\"))","v":"2018-09-02"}]
[]
[null,{"$f":"IF(DAY(EylPaz1)=1,IF(AND(YEAR(EylPaz1+1)=TakvimYılı,MONTH(EylPaz1+1)=9),EylPaz1+1,\"\"),IF(AND(YEAR(EylPaz1+8)=TakvimYılı,MONTH(EylPaz1+8)=9),EylPaz1+8,\"\"))","v":"2018-09-03"},{"$f":"IF(DAY(EylPaz1)=1,IF(AND(YEAR(EylPaz1+2)=TakvimYılı,MONTH(EylPaz1+2)=9),EylPaz1+2,\"\"),IF(AND(YEAR(EylPaz1+9)=TakvimYılı,MONTH(EylPaz1+9)=9),EylPaz1+9,\"\"))","v":"2018-09-04"},{"$f":"IF(DAY(EylPaz1)=1,IF(AND(YEAR(EylPaz1+3)=TakvimYılı,MONTH(EylPaz1+3)=9),EylPaz1+3,\"\"),IF(AND(YEAR(EylPaz1+10)=TakvimYılı,MONTH(EylPaz1+10)=9),EylPaz1+10,\"\"))","v":"2018-09-05"},{"$f":"IF(DAY(EylPaz1)=1,IF(AND(YEAR(EylPaz1+4)=TakvimYılı,MONTH(EylPaz1+4)=9),EylPaz1+4,\"\"),IF(AND(YEAR(EylPaz1+11)=TakvimYılı,MONTH(EylPaz1+11)=9),EylPaz1+11,\"\"))","v":"2018-09-06"},{"$f":"IF(DAY(EylPaz1)=1,IF(AND(YEAR(EylPaz1+5)=TakvimYılı,MONTH(EylPaz1+5)=9),EylPaz1+5,\"\"),IF(AND(YEAR(EylPaz1+12)=TakvimYılı,MONTH(EylPaz1+12)=9),EylPaz1+12,\"\"))","v":"2018-09-07"},{"$f":"IF(DAY(EylPaz1)=1,IF(AND(YEAR(EylPaz1+6)=TakvimYılı,MONTH(EylPaz1+6)=9),EylPaz1+6,\"\"),IF(AND(YEAR(EylPaz1+13)=TakvimYılı,MONTH(EylPaz1+13)=9),EylPaz1+13,\"\"))","v":"2018-09-08"},{"$f":"IF(DAY(EylPaz1)=1,IF(AND(YEAR(EylPaz1+7)=TakvimYılı,MONTH(EylPaz1+7)=9),EylPaz1+7,\"\"),IF(AND(YEAR(EylPaz1+14)=TakvimYılı,MONTH(EylPaz1+14)=9),EylPaz1+14,\"\"))","v":"2018-09-09"}]
[]
[null,{"$f":"IF(DAY(EylPaz1)=1,IF(AND(YEAR(EylPaz1+8)=TakvimYılı,MONTH(EylPaz1+8)=9),EylPaz1+8,\"\"),IF(AND(YEAR(EylPaz1+15)=TakvimYılı,MONTH(EylPaz1+15)=9),EylPaz1+15,\"\"))","v":"2018-09-10"},{"$f":"IF(DAY(EylPaz1)=1,IF(AND(YEAR(EylPaz1+9)=TakvimYılı,MONTH(EylPaz1+9)=9),EylPaz1+9,\"\"),IF(AND(YEAR(EylPaz1+16)=TakvimYılı,MONTH(EylPaz1+16)=9),EylPaz1+16,\"\"))","v":"2018-09-11"},{"$f":"IF(DAY(EylPaz1)=1,IF(AND(YEAR(EylPaz1+10)=TakvimYılı,MONTH(EylPaz1+10)=9),EylPaz1+10,\"\"),IF(AND(YEAR(EylPaz1+17)=TakvimYılı,MONTH(EylPaz1+17)=9),EylPaz1+17,\"\"))","v":"2018-09-12"},{"$f":"IF(DAY(EylPaz1)=1,IF(AND(YEAR(EylPaz1+11)=TakvimYılı,MONTH(EylPaz1+11)=9),EylPaz1+11,\"\"),IF(AND(YEAR(EylPaz1+18)=TakvimYılı,MONTH(EylPaz1+18)=9),EylPaz1+18,\"\"))","v":"2018-09-13"},{"$f":"IF(DAY(EylPaz1)=1,IF(AND(YEAR(EylPaz1+12)=TakvimYılı,MONTH(EylPaz1+12)=9),EylPaz1+12,\"\"),IF(AND(YEAR(EylPaz1+19)=TakvimYılı,MONTH(EylPaz1+19)=9),EylPaz1+19,\"\"))","v":"2018-09-14"},{"$f":"IF(DAY(EylPaz1)=1,IF(AND(YEAR(EylPaz1+13)=TakvimYılı,MONTH(EylPaz1+13)=9),EylPaz1+13,\"\"),IF(AND(YEAR(EylPaz1+20)=TakvimYılı,MONTH(EylPaz1+20)=9),EylPaz1+20,\"\"))","v":"2018-09-15"},{"$f":"IF(DAY(EylPaz1)=1,IF(AND(YEAR(EylPaz1+14)=TakvimYılı,MONTH(EylPaz1+14)=9),EylPaz1+14,\"\"),IF(AND(YEAR(EylPaz1+21)=TakvimYılı,MONTH(EylPaz1+21)=9),EylPaz1+21,\"\"))","v":"2018-09-16"}]
[]
[null,{"$f":"IF(DAY(EylPaz1)=1,IF(AND(YEAR(EylPaz1+15)=TakvimYılı,MONTH(EylPaz1+15)=9),EylPaz1+15,\"\"),IF(AND(YEAR(EylPaz1+22)=TakvimYılı,MONTH(EylPaz1+22)=9),EylPaz1+22,\"\"))","v":"2018-09-17"},{"$f":"IF(DAY(EylPaz1)=1,IF(AND(YEAR(EylPaz1+16)=TakvimYılı,MONTH(EylPaz1+16)=9),EylPaz1+16,\"\"),IF(AND(YEAR(EylPaz1+23)=TakvimYılı,MONTH(EylPaz1+23)=9),EylPaz1+23,\"\"))","v":"2018-09-18"},{"$f":"IF(DAY(EylPaz1)=1,IF(AND(YEAR(EylPaz1+17)=TakvimYılı,MONTH(EylPaz1+17)=9),EylPaz1+17,\"\"),IF(AND(YEAR(EylPaz1+24)=TakvimYılı,MONTH(EylPaz1+24)=9),EylPaz1+24,\"\"))","v":"2018-09-19"},{"$f":"IF(DAY(EylPaz1)=1,IF(AND(YEAR(EylPaz1+18)=TakvimYılı,MONTH(EylPaz1+18)=9),EylPaz1+18,\"\"),IF(AND(YEAR(EylPaz1+25)=TakvimYılı,MONTH(EylPaz1+25)=9),EylPaz1+25,\"\"))","v":"2018-09-20"},{"$f":"IF(DAY(EylPaz1)=1,IF(AND(YEAR(EylPaz1+19)=TakvimYılı,MONTH(EylPaz1+19)=9),EylPaz1+19,\"\"),IF(AND(YEAR(EylPaz1+26)=TakvimYılı,MONTH(EylPaz1+26)=9),EylPaz1+26,\"\"))","v":"2018-09-21"},{"$f":"IF(DAY(EylPaz1)=1,IF(AND(YEAR(EylPaz1+20)=TakvimYılı,MONTH(EylPaz1+20)=9),EylPaz1+20,\"\"),IF(AND(YEAR(EylPaz1+27)=TakvimYılı,MONTH(EylPaz1+27)=9),EylPaz1+27,\"\"))","v":"2018-09-22"},{"$f":"IF(DAY(EylPaz1)=1,IF(AND(YEAR(EylPaz1+21)=TakvimYılı,MONTH(EylPaz1+21)=9),EylPaz1+21,\"\"),IF(AND(YEAR(EylPaz1+28)=TakvimYılı,MONTH(EylPaz1+28)=9),EylPaz1+28,\"\"))","v":"2018-09-23"}]
[]
[null,{"$f":"IF(DAY(EylPaz1)=1,IF(AND(YEAR(EylPaz1+22)=TakvimYılı,MONTH(EylPaz1+22)=9),EylPaz1+22,\"\"),IF(AND(YEAR(EylPaz1+29)=TakvimYılı,MONTH(EylPaz1+29)=9),EylPaz1+29,\"\"))","v":"2018-09-24"},{"$f":"IF(DAY(EylPaz1)=1,IF(AND(YEAR(EylPaz1+23)=TakvimYılı,MONTH(EylPaz1+23)=9),EylPaz1+23,\"\"),IF(AND(YEAR(EylPaz1+30)=TakvimYılı,MONTH(EylPaz1+30)=9),EylPaz1+30,\"\"))","v":"2018-09-25"},{"$f":"IF(DAY(EylPaz1)=1,IF(AND(YEAR(EylPaz1+24)=TakvimYılı,MONTH(EylPaz1+24)=9),EylPaz1+24,\"\"),IF(AND(YEAR(EylPaz1+31)=TakvimYılı,MONTH(EylPaz1+31)=9),EylPaz1+31,\"\"))","v":"2018-09-26"},{"$f":"IF(DAY(EylPaz1)=1,IF(AND(YEAR(EylPaz1+25)=TakvimYılı,MONTH(EylPaz1+25)=9),EylPaz1+25,\"\"),IF(AND(YEAR(EylPaz1+32)=TakvimYılı,MONTH(EylPaz1+32)=9),EylPaz1+32,\"\"))","v":"2018-09-27"},{"$f":"IF(DAY(EylPaz1)=1,IF(AND(YEAR(EylPaz1+26)=TakvimYılı,MONTH(EylPaz1+26)=9),EylPaz1+26,\"\"),IF(AND(YEAR(EylPaz1+33)=TakvimYılı,MONTH(EylPaz1+33)=9),EylPaz1+33,\"\"))","v":"2018-09-28"},{"$f":"IF(DAY(EylPaz1)=1,IF(AND(YEAR(EylPaz1+27)=TakvimYılı,MONTH(EylPaz1+27)=9),EylPaz1+27,\"\"),IF(AND(YEAR(EylPaz1+34)=TakvimYılı,MONTH(EylPaz1+34)=9),EylPaz1+34,\"\"))","v":"2018-09-29"},{"$f":"IF(DAY(EylPaz1)=1,IF(AND(YEAR(EylPaz1+28)=TakvimYılı,MONTH(EylPaz1+28)=9),EylPaz1+28,\"\"),IF(AND(YEAR(EylPaz1+35)=TakvimYılı,MONTH(EylPaz1+35)=9),EylPaz1+35,\"\"))","v":"2018-09-30"}]
[]
[null,{"$f":"IF(DAY(EylPaz1)=1,IF(AND(YEAR(EylPaz1+29)=TakvimYılı,MONTH(EylPaz1+29)=9),EylPaz1+29,\"\"),IF(AND(YEAR(EylPaz1+36)=TakvimYılı,MONTH(EylPaz1+36)=9),EylPaz1+36,\"\"))","v":""},{"$f":"IF(DAY(EylPaz1)=1,IF(AND(YEAR(EylPaz1+30)=TakvimYılı,MONTH(EylPaz1+30)=9),EylPaz1+30,\"\"),IF(AND(YEAR(EylPaz1+37)=TakvimYılı,MONTH(EylPaz1+37)=9),EylPaz1+37,\"\"))","v":""},"NOTLAR:"]

{"sheet":"Eki","index":9,"n_rows":15,"n_cols":8,"rows_kept":15,"merged":[[2,1,2,5],[14,3,14,7],[15,3,15,7]]}
[]
[]
[null,{"$f":"UPPER(TEXT(DATE(TakvimYılı,10,1),\"aaaa yyyy\"))","v":"EKİM 2018"}]
[null,"PAZARTESİ","SALI","ÇARŞAMBA","PERŞEMBE","CUMA","CUMARTESİ","PAZAR"]
[null,{"$f":"IF(DAY(EkiPaz1)=1,\"\",IF(AND(YEAR(EkiPaz1+1)=TakvimYılı,MONTH(EkiPaz1+1)=10),EkiPaz1+1,\"\"))","v":"2018-10-01"},{"$f":"IF(DAY(EkiPaz1)=1,\"\",IF(AND(YEAR(EkiPaz1+2)=TakvimYılı,MONTH(EkiPaz1+2)=10),EkiPaz1+2,\"\"))","v":"2018-10-02"},{"$f":"IF(DAY(EkiPaz1)=1,\"\",IF(AND(YEAR(EkiPaz1+3)=TakvimYılı,MONTH(EkiPaz1+3)=10),EkiPaz1+3,\"\"))","v":"2018-10-03"},{"$f":"IF(DAY(EkiPaz1)=1,\"\",IF(AND(YEAR(EkiPaz1+4)=TakvimYılı,MONTH(EkiPaz1+4)=10),EkiPaz1+4,\"\"))","v":"2018-10-04"},{"$f":"IF(DAY(EkiPaz1)=1,\"\",IF(AND(YEAR(EkiPaz1+5)=TakvimYılı,MONTH(EkiPaz1+5)=10),EkiPaz1+5,\"\"))","v":"2018-10-05"},{"$f":"IF(DAY(EkiPaz1)=1,\"\",IF(AND(YEAR(EkiPaz1+6)=TakvimYılı,MONTH(EkiPaz1+6)=10),EkiPaz1+6,\"\"))","v":"2018-10-06"},{"$f":"IF(DAY(EkiPaz1)=1,IF(AND(YEAR(EkiPaz1)=TakvimYılı,MONTH(EkiPaz1)=10),EkiPaz1,\"\"),IF(AND(YEAR(EkiPaz1+7)=TakvimYılı,MONTH(EkiPaz1+7)=10),EkiPaz1+7,\"\"))","v":"2018-10-07"}]
[]
[null,{"$f":"IF(DAY(EkiPaz1)=1,IF(AND(YEAR(EkiPaz1+1)=TakvimYılı,MONTH(EkiPaz1+1)=10),EkiPaz1+1,\"\"),IF(AND(YEAR(EkiPaz1+8)=TakvimYılı,MONTH(EkiPaz1+8)=10),EkiPaz1+8,\"\"))","v":"2018-10-08"},{"$f":"IF(DAY(EkiPaz1)=1,IF(AND(YEAR(EkiPaz1+2)=TakvimYılı,MONTH(EkiPaz1+2)=10),EkiPaz1+2,\"\"),IF(AND(YEAR(EkiPaz1+9)=TakvimYılı,MONTH(EkiPaz1+9)=10),EkiPaz1+9,\"\"))","v":"2018-10-09"},{"$f":"IF(DAY(EkiPaz1)=1,IF(AND(YEAR(EkiPaz1+3)=TakvimYılı,MONTH(EkiPaz1+3)=10),EkiPaz1+3,\"\"),IF(AND(YEAR(EkiPaz1+10)=TakvimYılı,MONTH(EkiPaz1+10)=10),EkiPaz1+10,\"\"))","v":"2018-10-10"},{"$f":"IF(DAY(EkiPaz1)=1,IF(AND(YEAR(EkiPaz1+4)=TakvimYılı,MONTH(EkiPaz1+4)=10),EkiPaz1+4,\"\"),IF(AND(YEAR(EkiPaz1+11)=TakvimYılı,MONTH(EkiPaz1+11)=10),EkiPaz1+11,\"\"))","v":"2018-10-11"},{"$f":"IF(DAY(EkiPaz1)=1,IF(AND(YEAR(EkiPaz1+5)=TakvimYılı,MONTH(EkiPaz1+5)=10),EkiPaz1+5,\"\"),IF(AND(YEAR(EkiPaz1+12)=TakvimYılı,MONTH(EkiPaz1+12)=10),EkiPaz1+12,\"\"))","v":"2018-10-12"},{"$f":"IF(DAY(EkiPaz1)=1,IF(AND(YEAR(EkiPaz1+6)=TakvimYılı,MONTH(EkiPaz1+6)=10),EkiPaz1+6,\"\"),IF(AND(YEAR(EkiPaz1+13)=TakvimYılı,MONTH(EkiPaz1+13)=10),EkiPaz1+13,\"\"))","v":"2018-10-13"},{"$f":"IF(DAY(EkiPaz1)=1,IF(AND(YEAR(EkiPaz1+7)=TakvimYılı,MONTH(EkiPaz1+7)=10),EkiPaz1+7,\"\"),IF(AND(YEAR(EkiPaz1+14)=TakvimYılı,MONTH(EkiPaz1+14)=10),EkiPaz1+14,\"\"))","v":"2018-10-14"}]
[]
[null,{"$f":"IF(DAY(EkiPaz1)=1,IF(AND(YEAR(EkiPaz1+8)=TakvimYılı,MONTH(EkiPaz1+8)=10),EkiPaz1+8,\"\"),IF(AND(YEAR(EkiPaz1+15)=TakvimYılı,MONTH(EkiPaz1+15)=10),EkiPaz1+15,\"\"))","v":"2018-10-15"},{"$f":"IF(DAY(EkiPaz1)=1,IF(AND(YEAR(EkiPaz1+9)=TakvimYılı,MONTH(EkiPaz1+9)=10),EkiPaz1+9,\"\"),IF(AND(YEAR(EkiPaz1+16)=TakvimYılı,MONTH(EkiPaz1+16)=10),EkiPaz1+16,\"\"))","v":"2018-10-16"},{"$f":"IF(DAY(EkiPaz1)=1,IF(AND(YEAR(EkiPaz1+10)=TakvimYılı,MONTH(EkiPaz1+10)=10),EkiPaz1+10,\"\"),IF(AND(YEAR(EkiPaz1+17)=TakvimYılı,MONTH(EkiPaz1+17)=10),EkiPaz1+17,\"\"))","v":"2018-10-17"},{"$f":"IF(DAY(EkiPaz1)=1,IF(AND(YEAR(EkiPaz1+11)=TakvimYılı,MONTH(EkiPaz1+11)=10),EkiPaz1+11,\"\"),IF(AND(YEAR(EkiPaz1+18)=TakvimYılı,MONTH(EkiPaz1+18)=10),EkiPaz1+18,\"\"))","v":"2018-10-18"},{"$f":"IF(DAY(EkiPaz1)=1,IF(AND(YEAR(EkiPaz1+12)=TakvimYılı,MONTH(EkiPaz1+12)=10),EkiPaz1+12,\"\"),IF(AND(YEAR(EkiPaz1+19)=TakvimYılı,MONTH(EkiPaz1+19)=10),EkiPaz1+19,\"\"))","v":"2018-10-19"},{"$f":"IF(DAY(EkiPaz1)=1,IF(AND(YEAR(EkiPaz1+13)=TakvimYılı,MONTH(EkiPaz1+13)=10),EkiPaz1+13,\"\"),IF(AND(YEAR(EkiPaz1+20)=TakvimYılı,MONTH(EkiPaz1+20)=10),EkiPaz1+20,\"\"))","v":"2018-10-20"},{"$f":"IF(DAY(EkiPaz1)=1,IF(AND(YEAR(EkiPaz1+14)=TakvimYılı,MONTH(EkiPaz1+14)=10),EkiPaz1+14,\"\"),IF(AND(YEAR(EkiPaz1+21)=TakvimYılı,MONTH(EkiPaz1+21)=10),EkiPaz1+21,\"\"))","v":"2018-10-21"}]
[]
[null,{"$f":"IF(DAY(EkiPaz1)=1,IF(AND(YEAR(EkiPaz1+15)=TakvimYılı,MONTH(EkiPaz1+15)=10),EkiPaz1+15,\"\"),IF(AND(YEAR(EkiPaz1+22)=TakvimYılı,MONTH(EkiPaz1+22)=10),EkiPaz1+22,\"\"))","v":"2018-10-22"},{"$f":"IF(DAY(EkiPaz1)=1,IF(AND(YEAR(EkiPaz1+16)=TakvimYılı,MONTH(EkiPaz1+16)=10),EkiPaz1+16,\"\"),IF(AND(YEAR(EkiPaz1+23)=TakvimYılı,MONTH(EkiPaz1+23)=10),EkiPaz1+23,\"\"))","v":"2018-10-23"},{"$f":"IF(DAY(EkiPaz1)=1,IF(AND(YEAR(EkiPaz1+17)=TakvimYılı,MONTH(EkiPaz1+17)=10),EkiPaz1+17,\"\"),IF(AND(YEAR(EkiPaz1+24)=TakvimYılı,MONTH(EkiPaz1+24)=10),EkiPaz1+24,\"\"))","v":"2018-10-24"},{"$f":"IF(DAY(EkiPaz1)=1,IF(AND(YEAR(EkiPaz1+18)=TakvimYılı,MONTH(EkiPaz1+18)=10),EkiPaz1+18,\"\"),IF(AND(YEAR(EkiPaz1+25)=TakvimYılı,MONTH(EkiPaz1+25)=10),EkiPaz1+25,\"\"))","v":"2018-10-25"},{"$f":"IF(DAY(EkiPaz1)=1,IF(AND(YEAR(EkiPaz1+19)=TakvimYılı,MONTH(EkiPaz1+19)=10),EkiPaz1+19,\"\"),IF(AND(YEAR(EkiPaz1+26)=TakvimYılı,MONTH(EkiPaz1+26)=10),EkiPaz1+26,\"\"))","v":"2018-10-26"},{"$f":"IF(DAY(EkiPaz1)=1,IF(AND(YEAR(EkiPaz1+20)=TakvimYılı,MONTH(EkiPaz1+20)=10),EkiPaz1+20,\"\"),IF(AND(YEAR(EkiPaz1+27)=TakvimYılı,MONTH(EkiPaz1+27)=10),EkiPaz1+27,\"\"))","v":"2018-10-27"},{"$f":"IF(DAY(EkiPaz1)=1,IF(AND(YEAR(EkiPaz1+21)=TakvimYılı,MONTH(EkiPaz1+21)=10),EkiPaz1+21,\"\"),IF(AND(YEAR(EkiPaz1+28)=TakvimYılı,MONTH(EkiPaz1+28)=10),EkiPaz1+28,\"\"))","v":"2018-10-28"}]
[]
[null,{"$f":"IF(DAY(EkiPaz1)=1,IF(AND(YEAR(EkiPaz1+22)=TakvimYılı,MONTH(EkiPaz1+22)=10),EkiPaz1+22,\"\"),IF(AND(YEAR(EkiPaz1+29)=TakvimYılı,MONTH(EkiPaz1+29)=10),EkiPaz1+29,\"\"))","v":"2018-10-29"},{"$f":"IF(DAY(EkiPaz1)=1,IF(AND(YEAR(EkiPaz1+23)=TakvimYılı,MONTH(EkiPaz1+23)=10),EkiPaz1+23,\"\"),IF(AND(YEAR(EkiPaz1+30)=TakvimYılı,MONTH(EkiPaz1+30)=10),EkiPaz1+30,\"\"))","v":"2018-10-30"},{"$f":"IF(DAY(EkiPaz1)=1,IF(AND(YEAR(EkiPaz1+24)=TakvimYılı,MONTH(EkiPaz1+24)=10),EkiPaz1+24,\"\"),IF(AND(YEAR(EkiPaz1+31)=TakvimYılı,MONTH(EkiPaz1+31)=10),EkiPaz1+31,\"\"))","v":"2018-10-31"},{"$f":"IF(DAY(EkiPaz1)=1,IF(AND(YEAR(EkiPaz1+25)=TakvimYılı,MONTH(EkiPaz1+25)=10),EkiPaz1+25,\"\"),IF(AND(YEAR(EkiPaz1+32)=TakvimYılı,MONTH(EkiPaz1+32)=10),EkiPaz1+32,\"\"))","v":""},{"$f":"IF(DAY(EkiPaz1)=1,IF(AND(YEAR(EkiPaz1+26)=TakvimYılı,MONTH(EkiPaz1+26)=10),EkiPaz1+26,\"\"),IF(AND(YEAR(EkiPaz1+33)=TakvimYılı,MONTH(EkiPaz1+33)=10),EkiPaz1+33,\"\"))","v":""},{"$f":"IF(DAY(EkiPaz1)=1,IF(AND(YEAR(EkiPaz1+27)=TakvimYılı,MONTH(EkiPaz1+27)=10),EkiPaz1+27,\"\"),IF(AND(YEAR(EkiPaz1+34)=TakvimYılı,MONTH(EkiPaz1+34)=10),EkiPaz1+34,\"\"))","v":""},{"$f":"IF(DAY(EkiPaz1)=1,IF(AND(YEAR(EkiPaz1+28)=TakvimYılı,MONTH(EkiPaz1+28)=10),EkiPaz1+28,\"\"),IF(AND(YEAR(EkiPaz1+35)=TakvimYılı,MONTH(EkiPaz1+35)=10),EkiPaz1+35,\"\"))","v":""}]
[]
[null,{"$f":"IF(DAY(EkiPaz1)=1,IF(AND(YEAR(EkiPaz1+29)=TakvimYılı,MONTH(EkiPaz1+29)=10),EkiPaz1+29,\"\"),IF(AND(YEAR(EkiPaz1+36)=TakvimYılı,MONTH(EkiPaz1+36)=10),EkiPaz1+36,\"\"))","v":""},{"$f":"IF(DAY(EkiPaz1)=1,IF(AND(YEAR(EkiPaz1+30)=TakvimYılı,MONTH(EkiPaz1+30)=10),EkiPaz1+30,\"\"),IF(AND(YEAR(EkiPaz1+37)=TakvimYılı,MONTH(EkiPaz1+37)=10),EkiPaz1+37,\"\"))","v":""},"NOTLAR:"]

{"sheet":"Kas","index":10,"n_rows":15,"n_cols":8,"rows_kept":15,"merged":[[2,1,2,5],[14,3,14,7],[15,3,15,7]]}
[]
[]
[null,{"$f":"UPPER(TEXT(DATE(TakvimYılı,11,1),\"aaaa yyyy\"))","v":"KASIM 2018"}]
[null,"PAZARTESİ","SALI","ÇARŞAMBA","PERŞEMBE","CUMA","CUMARTESİ","PAZAR"]
[null,{"$f":"IF(DAY(KasPaz1)=1,\"\",IF(AND(YEAR(KasPaz1+1)=TakvimYılı,MONTH(KasPaz1+1)=11),KasPaz1+1,\"\"))","v":""},{"$f":"IF(DAY(KasPaz1)=1,\"\",IF(AND(YEAR(KasPaz1+2)=TakvimYılı,MONTH(KasPaz1+2)=11),KasPaz1+2,\"\"))","v":""},{"$f":"IF(DAY(KasPaz1)=1,\"\",IF(AND(YEAR(KasPaz1+3)=TakvimYılı,MONTH(KasPaz1+3)=11),KasPaz1+3,\"\"))","v":""},{"$f":"IF(DAY(KasPaz1)=1,\"\",IF(AND(YEAR(KasPaz1+4)=TakvimYılı,MONTH(KasPaz1+4)=11),KasPaz1+4,\"\"))","v":"2018-11-01"},{"$f":"IF(DAY(KasPaz1)=1,\"\",IF(AND(YEAR(KasPaz1+5)=TakvimYılı,MONTH(KasPaz1+5)=11),KasPaz1+5,\"\"))","v":"2018-11-02"},{"$f":"IF(DAY(KasPaz1)=1,\"\",IF(AND(YEAR(KasPaz1+6)=TakvimYılı,MONTH(KasPaz1+6)=11),KasPaz1+6,\"\"))","v":"2018-11-03"},{"$f":"IF(DAY(KasPaz1)=1,IF(AND(YEAR(KasPaz1)=TakvimYılı,MONTH(KasPaz1)=11),KasPaz1,\"\"),IF(AND(YEAR(KasPaz1+7)=TakvimYılı,MONTH(KasPaz1+7)=11),KasPaz1+7,\"\"))","v":"2018-11-04"}]
[]
[null,{"$f":"IF(DAY(KasPaz1)=1,IF(AND(YEAR(KasPaz1+1)=TakvimYılı,MONTH(KasPaz1+1)=11),KasPaz1+1,\"\"),IF(AND(YEAR(KasPaz1+8)=TakvimYılı,MONTH(KasPaz1+8)=11),KasPaz1+8,\"\"))","v":"2018-11-05"},{"$f":"IF(DAY(KasPaz1)=1,IF(AND(YEAR(KasPaz1+2)=TakvimYılı,MONTH(KasPaz1+2)=11),KasPaz1+2,\"\"),IF(AND(YEAR(KasPaz1+9)=TakvimYılı,MONTH(KasPaz1+9)=11),KasPaz1+9,\"\"))","v":"2018-11-06"},{"$f":"IF(DAY(KasPaz1)=1,IF(AND(YEAR(KasPaz1+3)=TakvimYılı,MONTH(KasPaz1+3)=11),KasPaz1+3,\"\"),IF(AND(YEAR(KasPaz1+10)=TakvimYılı,MONTH(KasPaz1+10)=11),KasPaz1+10,\"\"))","v":"2018-11-07"},{"$f":"IF(DAY(KasPaz1)=1,IF(AND(YEAR(KasPaz1+4)=TakvimYılı,MONTH(KasPaz1+4)=11),KasPaz1+4,\"\"),IF(AND(YEAR(KasPaz1+11)=TakvimYılı,MONTH(KasPaz1+11)=11),KasPaz1+11,\"\"))","v":"2018-11-08"},{"$f":"IF(DAY(KasPaz1)=1,IF(AND(YEAR(KasPaz1+5)=TakvimYılı,MONTH(KasPaz1+5)=11),KasPaz1+5,\"\"),IF(AND(YEAR(KasPaz1+12)=TakvimYılı,MONTH(KasPaz1+12)=11),KasPaz1+12,\"\"))","v":"2018-11-09"},{"$f":"IF(DAY(KasPaz1)=1,IF(AND(YEAR(KasPaz1+6)=TakvimYılı,MONTH(KasPaz1+6)=11),KasPaz1+6,\"\"),IF(AND(YEAR(KasPaz1+13)=TakvimYılı,MONTH(KasPaz1+13)=11),KasPaz1+13,\"\"))","v":"2018-11-10"},{"$f":"IF(DAY(KasPaz1)=1,IF(AND(YEAR(KasPaz1+7)=TakvimYılı,MONTH(KasPaz1+7)=11),KasPaz1+7,\"\"),IF(AND(YEAR(KasPaz1+14)=TakvimYılı,MONTH(KasPaz1+14)=11),KasPaz1+14,\"\"))","v":"2018-11-11"}]
[]
[null,{"$f":"IF(DAY(KasPaz1)=1,IF(AND(YEAR(KasPaz1+8)=TakvimYılı,MONTH(KasPaz1+8)=11),KasPaz1+8,\"\"),IF(AND(YEAR(KasPaz1+15)=TakvimYılı,MONTH(KasPaz1+15)=11),KasPaz1+15,\"\"))","v":"2018-11-12"},{"$f":"IF(DAY(KasPaz1)=1,IF(AND(YEAR(KasPaz1+9)=TakvimYılı,MONTH(KasPaz1+9)=11),KasPaz1+9,\"\"),IF(AND(YEAR(KasPaz1+16)=TakvimYılı,MONTH(KasPaz1+16)=11),KasPaz1+16,\"\"))","v":"2018-11-13"},{"$f":"IF(DAY(KasPaz1)=1,IF(AND(YEAR(KasPaz1+10)=TakvimYılı,MONTH(KasPaz1+10)=11),KasPaz1+10,\"\"),IF(AND(YEAR(KasPaz1+17)=TakvimYılı,MONTH(KasPaz1+17)=11),KasPaz1+17,\"\"))","v":"2018-11-14"},{"$f":"IF(DAY(KasPaz1)=1,IF(AND(YEAR(KasPaz1+11)=TakvimYılı,MONTH(KasPaz1+11)=11),KasPaz1+11,\"\"),IF(AND(YEAR(KasPaz1+18)=TakvimYılı,MONTH(KasPaz1+18)=11),KasPaz1+18,\"\"))","v":"2018-11-15"},{"$f":"IF(DAY(KasPaz1)=1,IF(AND(YEAR(KasPaz1+12)=TakvimYılı,MONTH(KasPaz1+12)=11),KasPaz1+12,\"\"),IF(AND(YEAR(KasPaz1+19)=TakvimYılı,MONTH(KasPaz1+19)=11),KasPaz1+19,\"\"))","v":"2018-11-16"},{"$f":"IF(DAY(KasPaz1)=1,IF(AND(YEAR(KasPaz1+13)=TakvimYılı,MONTH(KasPaz1+13)=11),KasPaz1+13,\"\"),IF(AND(YEAR(KasPaz1+20)=TakvimYılı,MONTH(KasPaz1+20)=11),KasPaz1+20,\"\"))","v":"2018-11-17"},{"$f":"IF(DAY(KasPaz1)=1,IF(AND(YEAR(KasPaz1+14)=TakvimYılı,MONTH(KasPaz1+14)=11),KasPaz1+14,\"\"),IF(AND(YEAR(KasPaz1+21)=TakvimYılı,MONTH(KasPaz1+21)=11),KasPaz1+21,\"\"))","v":"2018-11-18"}]
[]
[null,{"$f":"IF(DAY(KasPaz1)=1,IF(AND(YEAR(KasPaz1+15)=TakvimYılı,MONTH(KasPaz1+15)=11),KasPaz1+15,\"\"),IF(AND(YEAR(KasPaz1+22)=TakvimYılı,MONTH(KasPaz1+22)=11),KasPaz1+22,\"\"))","v":"2018-11-19"},{"$f":"IF(DAY(KasPaz1)=1,IF(AND(YEAR(KasPaz1+16)=TakvimYılı,MONTH(KasPaz1+16)=11),KasPaz1+16,\"\"),IF(AND(YEAR(KasPaz1+23)=TakvimYılı,MONTH(KasPaz1+23)=11),KasPaz1+23,\"\"))","v":"2018-11-20"},{"$f":"IF(DAY(KasPaz1)=1,IF(AND(YEAR(KasPaz1+17)=TakvimYılı,MONTH(KasPaz1+17)=11),KasPaz1+17,\"\"),IF(AND(YEAR(KasPaz1+24)=TakvimYılı,MONTH(KasPaz1+24)=11),KasPaz1+24,\"\"))","v":"2018-11-21"},{"$f":"IF(DAY(KasPaz1)=1,IF(AND(YEAR(KasPaz1+18)=TakvimYılı,MONTH(KasPaz1+18)=11),KasPaz1+18,\"\"),IF(AND(YEAR(KasPaz1+25)=TakvimYılı,MONTH(KasPaz1+25)=11),KasPaz1+25,\"\"))","v":"2018-11-22"},{"$f":"IF(DAY(KasPaz1)=1,IF(AND(YEAR(KasPaz1+19)=TakvimYılı,MONTH(KasPaz1+19)=11),KasPaz1+19,\"\"),IF(AND(YEAR(KasPaz1+26)=TakvimYılı,MONTH(KasPaz1+26)=11),KasPaz1+26,\"\"))","v":"2018-11-23"},{"$f":"IF(DAY(KasPaz1)=1,IF(AND(YEAR(KasPaz1+20)=TakvimYılı,MONTH(KasPaz1+20)=11),KasPaz1+20,\"\"),IF(AND(YEAR(KasPaz1+27)=TakvimYılı,MONTH(KasPaz1+27)=11),KasPaz1+27,\"\"))","v":"2018-11-24"},{"$f":"IF(DAY(KasPaz1)=1,IF(AND(YEAR(KasPaz1+21)=TakvimYılı,MONTH(KasPaz1+21)=11),KasPaz1+21,\"\"),IF(AND(YEAR(KasPaz1+28)=TakvimYılı,MONTH(KasPaz1+28)=11),KasPaz1+28,\"\"))","v":"2018-11-25"}]
[]
[null,{"$f":"IF(DAY(KasPaz1)=1,IF(AND(YEAR(KasPaz1+22)=TakvimYılı,MONTH(KasPaz1+22)=11),KasPaz1+22,\"\"),IF(AND(YEAR(KasPaz1+29)=TakvimYılı,MONTH(KasPaz1+29)=11),KasPaz1+29,\"\"))","v":"2018-11-26"},{"$f":"IF(DAY(KasPaz1)=1,IF(AND(YEAR(KasPaz1+23)=TakvimYılı,MONTH(KasPaz1+23)=11),KasPaz1+23,\"\"),IF(AND(YEAR(KasPaz1+30)=TakvimYılı,MONTH(KasPaz1+30)=11),KasPaz1+30,\"\"))","v":"2018-11-27"},{"$f":"IF(DAY(KasPaz1)=1,IF(AND(YEAR(KasPaz1+24)=TakvimYılı,MONTH(KasPaz1+24)=11),KasPaz1+24,\"\"),IF(AND(YEAR(KasPaz1+31)=TakvimYılı,MONTH(KasPaz1+31)=11),KasPaz1+31,\"\"))","v":"2018-11-28"},{"$f":"IF(DAY(KasPaz1)=1,IF(AND(YEAR(KasPaz1+25)=TakvimYılı,MONTH(KasPaz1+25)=11),KasPaz1+25,\"\"),IF(AND(YEAR(KasPaz1+32)=TakvimYılı,MONTH(KasPaz1+32)=11),KasPaz1+32,\"\"))","v":"2018-11-29"},{"$f":"IF(DAY(KasPaz1)=1,IF(AND(YEAR(KasPaz1+26)=TakvimYılı,MONTH(KasPaz1+26)=11),KasPaz1+26,\"\"),IF(AND(YEAR(KasPaz1+33)=TakvimYılı,MONTH(KasPaz1+33)=11),KasPaz1+33,\"\"))","v":"2018-11-30"},{"$f":"IF(DAY(KasPaz1)=1,IF(AND(YEAR(KasPaz1+27)=TakvimYılı,MONTH(KasPaz1+27)=11),KasPaz1+27,\"\"),IF(AND(YEAR(KasPaz1+34)=TakvimYılı,MONTH(KasPaz1+34)=11),KasPaz1+34,\"\"))","v":""},{"$f":"IF(DAY(KasPaz1)=1,IF(AND(YEAR(KasPaz1+28)=TakvimYılı,MONTH(KasPaz1+28)=11),KasPaz1+28,\"\"),IF(AND(YEAR(KasPaz1+35)=TakvimYılı,MONTH(KasPaz1+35)=11),KasPaz1+35,\"\"))","v":""}]
[]
[null,{"$f":"IF(DAY(KasPaz1)=1,IF(AND(YEAR(KasPaz1+29)=TakvimYılı,MONTH(KasPaz1+29)=11),KasPaz1+29,\"\"),IF(AND(YEAR(KasPaz1+36)=TakvimYılı,MONTH(KasPaz1+36)=11),KasPaz1+36,\"\"))","v":""},{"$f":"IF(DAY(KasPaz1)=1,IF(AND(YEAR(KasPaz1+30)=TakvimYılı,MONTH(KasPaz1+30)=11),KasPaz1+30,\"\"),IF(AND(YEAR(KasPaz1+37)=TakvimYılı,MONTH(KasPaz1+37)=11),KasPaz1+37,\"\"))","v":""},"NOTLAR:"]

{"sheet":"Ara","index":11,"n_rows":15,"n_cols":8,"rows_kept":15,"merged":[[2,1,2,5],[14,3,14,7],[15,3,15,7]]}
[]
[]
[null,{"$f":"UPPER(TEXT(DATE(TakvimYılı,12,1),\"aaaa yyyy\"))","v":"ARALIK 2018"}]
[null,"PAZARTESİ","SALI","ÇARŞAMBA","PERŞEMBE","CUMA","CUMARTESİ","PAZAR"]
[null,{"$f":"IF(DAY(AraPaz1)=1,\"\",IF(AND(YEAR(AraPaz1+1)=TakvimYılı,MONTH(AraPaz1+1)=12),AraPaz1+1,\"\"))","v":""},{"$f":"IF(DAY(AraPaz1)=1,\"\",IF(AND(YEAR(AraPaz1+2)=TakvimYılı,MONTH(AraPaz1+2)=12),AraPaz1+2,\"\"))","v":""},{"$f":"IF(DAY(AraPaz1)=1,\"\",IF(AND(YEAR(AraPaz1+3)=TakvimYılı,MONTH(AraPaz1+3)=12),AraPaz1+3,\"\"))","v":""},{"$f":"IF(DAY(AraPaz1)=1,\"\",IF(AND(YEAR(AraPaz1+4)=TakvimYılı,MONTH(AraPaz1+4)=12),AraPaz1+4,\"\"))","v":""},{"$f":"IF(DAY(AraPaz1)=1,\"\",IF(AND(YEAR(AraPaz1+5)=TakvimYılı,MONTH(AraPaz1+5)=12),AraPaz1+5,\"\"))","v":""},{"$f":"IF(DAY(AraPaz1)=1,\"\",IF(AND(YEAR(AraPaz1+6)=TakvimYılı,MONTH(AraPaz1+6)=12),AraPaz1+6,\"\"))","v":"2018-12-01"},{"$f":"IF(DAY(AraPaz1)=1,IF(AND(YEAR(AraPaz1)=TakvimYılı,MONTH(AraPaz1)=12),AraPaz1,\"\"),IF(AND(YEAR(AraPaz1+7)=TakvimYılı,MONTH(AraPaz1+7)=12),AraPaz1+7,\"\"))","v":"2018-12-02"}]
[]
[null,{"$f":"IF(DAY(AraPaz1)=1,IF(AND(YEAR(AraPaz1+1)=TakvimYılı,MONTH(AraPaz1+1)=12),AraPaz1+1,\"\"),IF(AND(YEAR(AraPaz1+8)=TakvimYılı,MONTH(AraPaz1+8)=12),AraPaz1+8,\"\"))","v":"2018-12-03"},{"$f":"IF(DAY(AraPaz1)=1,IF(AND(YEAR(AraPaz1+2)=TakvimYılı,MONTH(AraPaz1+2)=12),AraPaz1+2,\"\"),IF(AND(YEAR(AraPaz1+9)=TakvimYılı,MONTH(AraPaz1+9)=12),AraPaz1+9,\"\"))","v":"2018-12-04"},{"$f":"IF(DAY(AraPaz1)=1,IF(AND(YEAR(AraPaz1+3)=TakvimYılı,MONTH(AraPaz1+3)=12),AraPaz1+3,\"\"),IF(AND(YEAR(AraPaz1+10)=TakvimYılı,MONTH(AraPaz1+10)=12),AraPaz1+10,\"\"))","v":"2018-12-05"},{"$f":"IF(DAY(AraPaz1)=1,IF(AND(YEAR(AraPaz1+4)=TakvimYılı,MONTH(AraPaz1+4)=12),AraPaz1+4,\"\"),IF(AND(YEAR(AraPaz1+11)=TakvimYılı,MONTH(AraPaz1+11)=12),AraPaz1+11,\"\"))","v":"2018-12-06"},{"$f":"IF(DAY(AraPaz1)=1,IF(AND(YEAR(AraPaz1+5)=TakvimYılı,MONTH(AraPaz1+5)=12),AraPaz1+5,\"\"),IF(AND(YEAR(AraPaz1+12)=TakvimYılı,MONTH(AraPaz1+12)=12),AraPaz1+12,\"\"))","v":"2018-12-07"},{"$f":"IF(DAY(AraPaz1)=1,IF(AND(YEAR(AraPaz1+6)=TakvimYılı,MONTH(AraPaz1+6)=12),AraPaz1+6,\"\"),IF(AND(YEAR(AraPaz1+13)=TakvimYılı,MONTH(AraPaz1+13)=12),AraPaz1+13,\"\"))","v":"2018-12-08"},{"$f":"IF(DAY(AraPaz1)=1,IF(AND(YEAR(AraPaz1+7)=TakvimYılı,MONTH(AraPaz1+7)=12),AraPaz1+7,\"\"),IF(AND(YEAR(AraPaz1+14)=TakvimYılı,MONTH(AraPaz1+14)=12),AraPaz1+14,\"\"))","v":"2018-12-09"}]
[]
[null,{"$f":"IF(DAY(AraPaz1)=1,IF(AND(YEAR(AraPaz1+8)=TakvimYılı,MONTH(AraPaz1+8)=12),AraPaz1+8,\"\"),IF(AND(YEAR(AraPaz1+15)=TakvimYılı,MONTH(AraPaz1+15)=12),AraPaz1+15,\"\"))","v":"2018-12-10"},{"$f":"IF(DAY(AraPaz1)=1,IF(AND(YEAR(AraPaz1+9)=TakvimYılı,MONTH(AraPaz1+9)=12),AraPaz1+9,\"\"),IF(AND(YEAR(AraPaz1+16)=TakvimYılı,MONTH(AraPaz1+16)=12),AraPaz1+16,\"\"))","v":"2018-12-11"},{"$f":"IF(DAY(AraPaz1)=1,IF(AND(YEAR(AraPaz1+10)=TakvimYılı,MONTH(AraPaz1+10)=12),AraPaz1+10,\"\"),IF(AND(YEAR(AraPaz1+17)=TakvimYılı,MONTH(AraPaz1+17)=12),AraPaz1+17,\"\"))","v":"2018-12-12"},{"$f":"IF(DAY(AraPaz1)=1,IF(AND(YEAR(AraPaz1+11)=TakvimYılı,MONTH(AraPaz1+11)=12),AraPaz1+11,\"\"),IF(AND(YEAR(AraPaz1+18)=TakvimYılı,MONTH(AraPaz1+18)=12),AraPaz1+18,\"\"))","v":"2018-12-13"},{"$f":"IF(DAY(AraPaz1)=1,IF(AND(YEAR(AraPaz1+12)=TakvimYılı,MONTH(AraPaz1+12)=12),AraPaz1+12,\"\"),IF(AND(YEAR(AraPaz1+19)=TakvimYılı,MONTH(AraPaz1+19)=12),AraPaz1+19,\"\"))","v":"2018-12-14"},{"$f":"IF(DAY(AraPaz1)=1,IF(AND(YEAR(AraPaz1+13)=TakvimYılı,MONTH(AraPaz1+13)=12),AraPaz1+13,\"\"),IF(AND(YEAR(AraPaz1+20)=TakvimYılı,MONTH(AraPaz1+20)=12),AraPaz1+20,\"\"))","v":"2018-12-15"},{"$f":"IF(DAY(AraPaz1)=1,IF(AND(YEAR(AraPaz1+14)=TakvimYılı,MONTH(AraPaz1+14)=12),AraPaz1+14,\"\"),IF(AND(YEAR(AraPaz1+21)=TakvimYılı,MONTH(AraPaz1+21)=12),AraPaz1+21,\"\"))","v":"2018-12-16"}]
[]
[null,{"$f":"IF(DAY(AraPaz1)=1,IF(AND(YEAR(AraPaz1+15)=TakvimYılı,MONTH(AraPaz1+15)=12),AraPaz1+15,\"\"),IF(AND(YEAR(AraPaz1+22)=TakvimYılı,MONTH(AraPaz1+22)=12),AraPaz1+22,\"\"))","v":"2018-12-17"},{"$f":"IF(DAY(AraPaz1)=1,IF(AND(YEAR(AraPaz1+16)=TakvimYılı,MONTH(AraPaz1+16)=12),AraPaz1+16,\"\"),IF(AND(YEAR(AraPaz1+23)=TakvimYılı,MONTH(AraPaz1+23)=12),AraPaz1+23,\"\"))","v":"2018-12-18"},{"$f":"IF(DAY(AraPaz1)=1,IF(AND(YEAR(AraPaz1+17)=TakvimYılı,MONTH(AraPaz1+17)=12),AraPaz1+17,\"\"),IF(AND(YEAR(AraPaz1+24)=TakvimYılı,MONTH(AraPaz1+24)=12),AraPaz1+24,\"\"))","v":"2018-12-19"},{"$f":"IF(DAY(AraPaz1)=1,IF(AND(YEAR(AraPaz1+18)=TakvimYılı,MONTH(AraPaz1+18)=12),AraPaz1+18,\"\"),IF(AND(YEAR(AraPaz1+25)=TakvimYılı,MONTH(AraPaz1+25)=12),AraPaz1+25,\"\"))","v":"2018-12-20"},{"$f":"IF(DAY(AraPaz1)=1,IF(AND(YEAR(AraPaz1+19)=TakvimYılı,MONTH(AraPaz1+19)=12),AraPaz1+19,\"\"),IF(AND(YEAR(AraPaz1+26)=TakvimYılı,MONTH(AraPaz1+26)=12),AraPaz1+26,\"\"))","v":"2018-12-21"},{"$f":"IF(DAY(AraPaz1)=1,IF(AND(YEAR(AraPaz1+20)=TakvimYılı,MONTH(AraPaz1+20)=12),AraPaz1+20,\"\"),IF(AND(YEAR(AraPaz1+27)=TakvimYılı,MONTH(AraPaz1+27)=12),AraPaz1+27,\"\"))","v":"2018-12-22"},{"$f":"IF(DAY(AraPaz1)=1,IF(AND(YEAR(AraPaz1+21)=TakvimYılı,MONTH(AraPaz1+21)=12),AraPaz1+21,\"\"),IF(AND(YEAR(AraPaz1+28)=TakvimYılı,MONTH(AraPaz1+28)=12),AraPaz1+28,\"\"))","v":"2018-12-23"}]
[]
[null,{"$f":"IF(DAY(AraPaz1)=1,IF(AND(YEAR(AraPaz1+22)=TakvimYılı,MONTH(AraPaz1+22)=12),AraPaz1+22,\"\"),IF(AND(YEAR(AraPaz1+29)=TakvimYılı,MONTH(AraPaz1+29)=12),AraPaz1+29,\"\"))","v":"2018-12-24"},{"$f":"IF(DAY(AraPaz1)=1,IF(AND(YEAR(AraPaz1+23)=TakvimYılı,MONTH(AraPaz1+23)=12),AraPaz1+23,\"\"),IF(AND(YEAR(AraPaz1+30)=TakvimYılı,MONTH(AraPaz1+30)=12),AraPaz1+30,\"\"))","v":"2018-12-25"},{"$f":"IF(DAY(AraPaz1)=1,IF(AND(YEAR(AraPaz1+24)=TakvimYılı,MONTH(AraPaz1+24)=12),AraPaz1+24,\"\"),IF(AND(YEAR(AraPaz1+31)=TakvimYılı,MONTH(AraPaz1+31)=12),AraPaz1+31,\"\"))","v":"2018-12-26"},{"$f":"IF(DAY(AraPaz1)=1,IF(AND(YEAR(AraPaz1+25)=TakvimYılı,MONTH(AraPaz1+25)=12),AraPaz1+25,\"\"),IF(AND(YEAR(AraPaz1+32)=TakvimYılı,MONTH(AraPaz1+32)=12),AraPaz1+32,\"\"))","v":"2018-12-27"},{"$f":"IF(DAY(AraPaz1)=1,IF(AND(YEAR(AraPaz1+26)=TakvimYılı,MONTH(AraPaz1+26)=12),AraPaz1+26,\"\"),IF(AND(YEAR(AraPaz1+33)=TakvimYılı,MONTH(AraPaz1+33)=12),AraPaz1+33,\"\"))","v":"2018-12-28"},{"$f":"IF(DAY(AraPaz1)=1,IF(AND(YEAR(AraPaz1+27)=TakvimYılı,MONTH(AraPaz1+27)=12),AraPaz1+27,\"\"),IF(AND(YEAR(AraPaz1+34)=TakvimYılı,MONTH(AraPaz1+34)=12),AraPaz1+34,\"\"))","v":"2018-12-29"},{"$f":"IF(DAY(AraPaz1)=1,IF(AND(YEAR(AraPaz1+28)=TakvimYılı,MONTH(AraPaz1+28)=12),AraPaz1+28,\"\"),IF(AND(YEAR(AraPaz1+35)=TakvimYılı,MONTH(AraPaz1+35)=12),AraPaz1+35,\"\"))","v":"2018-12-30"}]
[]
[null,{"$f":"IF(DAY(AraPaz1)=1,IF(AND(YEAR(AraPaz1+29)=TakvimYılı,MONTH(AraPaz1+29)=12),AraPaz1+29,\"\"),IF(AND(YEAR(AraPaz1+36)=TakvimYılı,MONTH(AraPaz1+36)=12),AraPaz1+36,\"\"))","v":"2018-12-31"},{"$f":"IF(DAY(AraPaz1)=1,IF(AND(YEAR(AraPaz1+30)=TakvimYılı,MONTH(AraPaz1+30)=12),AraPaz1+30,\"\"),IF(AND(YEAR(AraPaz1+37)=TakvimYılı,MONTH(AraPaz1+37)=12),AraPaz1+37,\"\"))","v":""},"NOTLAR:"]